Cogmind - Beta 12 @@@ ROGUE MODE // 2023.04.01 @ 01:35:28 Player: MTF Result: Escaped singularity! Performance ------------- Evolutions (9) 4500 Regions Visited (39) 7800 Robots Destroyed (985) 4925 Value Destroyed (61625) 61625 Prototype IDs (321) 6420 Alien Tech Used (11) 2200 Bonus (108304) 108304 TOTAL SCORE: 195774 Bonus ------- Triggered High Security 1000 High Alert Combat Kills 58644 Follower Combat Kills 2401 Entered Garrisons 600 Network Hubs Disabled 200 Aligned with FarCom 300 Met Imprinter 300 Destroyed Z-Imprinter 1000 Triggered Deep Caves Wall 500 Exposed GOLEM Chamber 500 Met Zhirov 300 Met Warlord at Base 500 MAIN.C Attacked Warlord 500 Warlord Defense Kills 986 Built Enhanced Grunts 300 A7 Reached Mainframe 300 Met R17 at Cetus 500 Used Core Reset Matrix 3000 Met Warlord at Research 2000 Destroyed MAIN.C Guards 500 Met MAIN.C 5000 Destroyed MAIN.C Shell 5000 Destroyed MAIN.C 10000 Destroyed A8 300 Destroyed A6 400 Destroyed Architect 15000 Win 3000 Friendly Fire -4727 Cogmind --------- Core Integrity 366/1600 Matter 121/300 Energy 98/100 System Corruption 0% Temperature Cool (0) Movement Core (50) Location Near Former Tau Ceti IV Parts ------- > --- POWER (3) -------- (None) > --- PROPULSION (6) --- (None) > --- UTILITY (14) ----- (None) > --- WEAPON (2) ------- (None) > --- INVENTORY (5) ---- Perforator Omega Cannon Peak State ------------ > --- POWER ------------ Improved Quantum Reactor Vortex Chain Reactor > --- PROPULSION ------- Armored Heavy Treads High-density Centrium Heavy Treads High-density Centrium Heavy Treads > --- UTILITY ---------- Huge Storage Unit Surveybot 24 Chip Assembled Combat Suite Quantum Capacitor Improved Transmission Jammer SHELL Armor Experimental EM Disruption Field Experimental Force Field Advanced Component Analysis Suite Microwarp Drive > --- WEAPON ----------- Firepult > --- INVENTORY -------- Armored Heavy Treads Experimental Energy Well Experimental Energy Well Zionite Biocell Experimental Matter Compressor Long-range Terrain Scanner Experimental Armor Integrity Analyzer Experimental Hacking Suite Long-range Tractor Beam Transdimensional Reconstructor High-powered Transdimensional Reconstructor Integrity Redistributor Integrity Redistributor Compact HERF Cannon Enhanced Nova Cannon Enhanced Nova Cannon Improved Potential Cannon Omega Cannon Compact Tesla Bomb Launcher Ragnarok Missile Launcher Core Stripper [Rating: 254] Favorites ----------- Power Vortex Chain Reactor Engine Heavy Ion Engine Power Core Micro Nuclear Core Reactor Vortex Chain Reactor Propulsion Light Treads Treads Light Treads Leg Assembled Alloy Leg Flight Unit Flight Unit Utility Huge Storage Unit Device Assembled Combat Suite Storage Huge Storage Unit Processor Surveybot 24 Chip Hackware Improved Hacking Suite Protection SHELL Armor Artifact Microwarp Drive Weapon Assembled Focal Cannon Energy Gun Spread Laser Energy Cannon Assembled Focal Cannon Ballistic Gun Enhanced Autogun Ballistic Cannon Heavy Hardcell Cannon Launcher Rocket Array Special Weapon Remote Datajack Impact Weapon Core Stripper Piercing Weapon CR-A16's Pointy Stick Build | -11 -10 -10 -10 -9 -8 -8 -8 -8 -7 -7 -7 -7 -7 -6 -6 -6 -6 -6 -6 -6 -5 -5 -5 -5 -4 -4 -4 -4 -4 -3 -3 -3 -2 -2 -2 -2 -1 -1 -1 ------- Run | Jun Mat Min Exi Min Mat Gar Mat Sto Fac Low Low Zio Dee Pro Fac Ext Cet Arc Hub Gar Fac Upp Upp War Pro Fac Upp Upp Zhi Pro Res Tes Res Qua Sec Gar Acc Com Ac0 Slots Evolved 18 | . . . . . 4 . . . 2 . . . . . 2 . . . . . 2 . . . . 2 . . . . 2 . 2 . . . 2 . . Power 2 | . . . . . . . . . 1 . . . . . . . . . . . . . . . . . . . . . 1 . . . . . . . . Propulsion 4 | . . . . . 2 . . . . . . . . . . . . . . . . . . . . 2 . . . . . . . . . . . . . Utility 12 | . . . . . 2 . . . 1 . . . . . 2 . . . . . 2 . . . . . . . . . 1 . 2 . . . 2 . . Weapon . | . . . . . . . . . . . . . . . . . . . . . . . . . . . . . . . . . . . . . . . . Parts Attached 911 | 6 12 7 . . 4 43 27 22 24 23 29 10 50 26 11 9 16 12 1 25 7 2 12 13 10 8 4 1 9 15 17 54 7 61 73 24 71 140 26 Power 29 | . 1 . . . . 3 . 3 1 . 2 . 3 1 . . 3 . . . . . . 1 . . . . . 1 1 . 1 4 1 . . 2 1 Engine 5 | . 1 . . . . . . 1 1 . 2 . . . . . . . . . . . . . . . . . . . . . . . . . . . . Core 3 | . . . . . . 3 . . . . . . . . . . . . . . . . . . . . . . . . . . . . . . . . . Reactor 21 | . . . . . . . . 2 . . . . 3 1 . . 3 . . . . . . 1 . . . . . 1 1 . 1 4 1 . . 2 1 Propulsion 88 | 2 . . . . 2 14 7 . 3 4 2 1 13 . 3 2 2 . 1 5 . . 3 . 1 2 1 . 2 . . 8 2 4 . . 4 . . Treads 66 | 2 . . . . 2 1 4 . 3 4 2 1 8 . 3 2 2 . 1 5 . . 3 . 1 2 1 . 1 . . 8 2 4 . . 4 . . Leg 20 | . . . . . . 11 3 . . . . . 5 . . . . . . . . . . . . . . . 1 . . . . . . . . . . Wheel . | . . . . . . . . . . . . . . . . . . . . . . . . . . . . . . . . . . . . . . . . Hover . | . . . . . . . . . . . . . . . . . . . . . . . . . . . . . . . . . . . . . . . . Flight 2 | . . . . . . 2 . . . . . . . . . . . . . . . . . . . . . . . . . . . . . . . . . Utility 493 | 3 5 1 . . . 10 6 9 11 8 9 4 23 16 4 3 3 12 . 16 7 2 9 11 8 5 1 1 4 12 14 38 2 39 47 12 56 69 13 Device 317 | 3 2 . . . . 7 2 3 4 4 4 1 7 8 1 2 1 10 . 7 3 1 4 4 1 4 1 1 1 9 9 25 1 31 39 8 47 50 12 Storage 29 | . 3 1 . . . 2 . 1 . . . . 2 . . 1 . . . . . . 1 . . . . . . 2 . . . 5 2 4 . 5 . Processor 24 | . . . . . . . . 1 2 . . 1 1 . . . . . . . 1 . . 1 . 1 . . . . 2 . . 3 . . 4 7 . Hackware 1 | . . . . . . . . . . . . . . . . . . . . . . . . . . . . . . . 1 . . . . . . . . Protection 115 | . . . . . . 1 4 4 5 4 5 2 13 8 3 . 2 2 . 9 3 1 4 6 7 . . . 3 1 2 13 1 . 2 . 3 6 1 Artifact 7 | . . . . . . . . . . . . . . . . . . . . . . . . . . . . . . . . . . . 4 . 2 1 . Weapon 301 | 1 6 6 . . 2 16 14 10 9 11 16 5 11 9 4 4 8 . . 4 . . . 1 1 1 2 . 3 2 2 8 2 14 25 12 11 69 12 Energy Gun 27 | . 5 1 . . 2 9 4 3 . . . . 3 . . . . . . . . . . . . . . . . . . . . . . . . . . Energy Cannon 154 | . . . . . . 2 7 6 5 3 5 2 2 2 . . . . . . . . . . . 1 1 . 2 1 2 5 1 5 15 5 9 61 12 Ballistic Gun 25 | 1 . 3 . . . 1 1 . 2 5 8 3 1 . . . . . . . . . . . . . . . . . . . . . . . . . . Ballistic Cannon 39 | . . . . . . 3 1 . . . . . . 4 2 2 2 . . 1 . . . . . . . . . . . 2 . 3 5 6 . 8 . Launcher 23 | . . . . . . . . 1 2 2 1 . 3 3 2 . 2 . . . . . . 1 . . . . . 1 . . . . 3 . 2 . . Special Weapon 14 | . 1 2 . . . 1 1 . . 1 2 . 1 . . 1 2 . . 2 . . . . . . . . . . . . . . . . . . . Impact Weapon 5 | . . . . . . . . . . . . . . . . . . . . . . . . . . . . . . . . . . 3 1 1 . . . Slashing Weapon . | . . . . . . . . . . . . . . . . . . . . . . . . . . . . . . . . . . . . . . . . Piercing Weapon 14 | . . . . . . . . . . . . . 1 . . 1 2 . . 1 . . . . 1 . 1 . 1 . . 1 1 3 1 . . . . Special Melee Weapon . | . . . . . . . . . . . . . . . . . . . . . . . . . . . . . . . . . . . . . . . . Unidentified Prototypes 65 | . 1 . . . . . 3 7 2 . . . 11 8 . . 2 . . 2 1 . . 6 . . . . 3 . 1 3 . 6 2 3 . 4 . Corrupted Parts 8 | . . . . . . . . . . . . . . 1 . . 4 . . 2 . . . . . . . . . . . 1 . . . . . . . System Corruption 61 | . . . . . . . . . . . . . . 3 . . 38 . . 12 . . . . . . . . . . . 8 . . . . . . . Parts Lost 34 | . 1 . . . . 13 . . 1 . 2 . 7 3 . . 1 . . 2 2 . . . 2 . . . . . . . . . . . . . . Power 4 | . . . . . . 2 . . . . . . 1 . . . 1 . . . . . . . . . . . . . . . . . . . . . . Propulsion 15 | . . . . . . 7 . . 1 . 2 . 2 2 . . . . . . . . . . 1 . . . . . . . . . . . . . . Utility 13 | . 1 . . . . 2 . . . . . . 4 1 . . . . . 2 2 . . . 1 . . . . . . . . . . . . . . Weapon 2 | . . . . . . 2 . . . . . . . . . . . . . . . . . . . . . . . . . . . . . . . . . Highest Loss Streak 7 | . 1 . . . . 7 . . 1 . 2 . 4 2 . . 1 . . 1 2 . . . 2 . . . . . . . . . . . . . . To Critical Strikes 1 | . . . . . . . . . . . . . . . . . . . . . . . . . 1 . . . . . . . . . . . . . . Average Slot Usage (%) 77 | . 99 100 100 100 79 96 99 99 100 100 99 98 89 70 74 73 75 70 73 72 75 75 75 74 71 71 68 68 57 67 68 70 68 68 67 64 66 67 67 Engine 1 | . 14 14 14 14 9 . . . 7 7 7 7 . . . . . . . . . . . . . . . . . . . . . . . . . . . Reactor 6 | . . . . . . . . 6 7 7 7 7 11 7 6 5 10 7 6 6 5 5 4 5 5 5 5 5 5 5 9 9 8 9 8 8 8 8 8 Treads 16 | . 28 28 28 28 36 4 3 36 30 30 29 29 26 6 9 13 13 13 13 12 11 11 11 11 11 15 15 15 14 15 14 18 16 13 13 13 12 12 12 Leg 2 | . . . . . . 29 32 . . . . . 3 15 13 13 1 . . . . . . . . . . . . . . . . . . . . . . Device 16 | . 13 14 14 14 9 22 14 9 6 4 6 7 2 12 13 13 13 16 13 12 16 17 17 17 17 17 21 21 21 20 20 21 21 21 25 22 24 20 16 Storage 7 | . 14 14 14 14 9 9 9 9 7 7 7 7 8 11 13 13 13 13 13 13 11 10 11 11 11 8 5 5 5 5 4 4 8 7 4 6 4 4 4 Processor 5 | . . . . . . . . 1 14 15 15 15 7 . . . . . . . . . . . . . . . . . . . . 2 4 4 6 11 16 Protection 8 | . . . . . . 2 12 16 8 9 8 6 12 4 11 6 10 6 13 12 16 16 16 14 12 13 10 10 8 9 9 7 3 4 3 4 6 6 7 Energy Cannon 5 | . . . . . . 3 4 17 14 . 3 3 3 7 . . . 11 13 11 11 11 10 10 10 10 9 10 1 9 8 7 7 5 5 2 4 3 3 Ballistic Gun 2 | . 21 20 28 28 1 . . . . 14 10 9 5 . . . . . . . . . . . . . . . . . . . . . . . . . . Naked Turns 7 | . . . . . . . . . . . . . . . . . . . . . . . . . . . . . . . . . . . . . . . 7 Heaviest Build 220 | 12 32 49 49 49 52 75 70 113 121 117 121 117 160 160 161 161 171 170 168 171 177 176 178 184 184 183 176 176 180 176 200 211 213 214 210 210 220 215 209 Greatest Support 290 | 40 40 40 40 40 80 80 80 80 80 80 80 88 116 60 60 60 160 160 160 160 150 150 175 150 155 235 230 230 230 230 230 230 222 240 270 270 290 290 290 Greatest Overweight (x) 6 | . . 1 1 1 . 3 1 1 1 1 1 1 2 4 2 2 2 1 1 1 1 1 1 1 1 . 1 . . . . 1 1 1 . . 6 . . Average Overweight (x) . | . . . 1 1 . 1 . . 1 1 1 1 1 2 2 2 . . 1 . 1 1 . 1 1 . . . . . . . . . . . . . . Largest Inventory Capacity 25 | 8 25 20 20 20 20 20 20 25 25 25 25 25 25 25 25 25 25 25 25 25 25 25 25 25 25 25 25 25 25 25 25 25 25 25 25 25 25 25 25 Average Capacity 24 | 8 10 18 20 20 20 20 20 22 25 25 25 25 25 25 25 25 25 25 25 25 25 25 24 25 25 25 25 25 25 23 25 25 25 25 25 25 25 25 24 Most Carried 25 | 5 13 16 16 16 15 20 20 25 25 25 25 25 25 25 25 25 25 25 25 25 25 25 25 25 25 25 25 25 25 25 25 25 25 25 25 25 25 25 25 Average Carried 23 | 4 8 15 16 16 13 17 19 21 24 24 24 24 22 24 24 24 24 24 25 24 24 24 24 24 24 24 24 24 24 23 24 24 24 24 24 24 23 23 22 Final Capacity 25 | 8 15 20 20 20 20 20 20 25 25 25 25 25 25 25 25 25 25 25 25 25 25 25 25 25 25 25 25 25 25 25 25 25 25 25 25 25 25 25 5 Final Carried 25 | 4 13 16 16 16 15 19 20 25 25 25 25 25 25 25 25 25 25 25 25 25 25 25 25 25 22 24 25 25 25 25 25 25 24 25 25 24 23 24 4 Class Distribution -------------------- 30% | Alien-Mutant 30% | Scavenger-Mutant 16% | Mutant 10% | Golem 6% | Scavenger-Golem 3% | Commander-Golem Dominant Class ---------------- Mutant | -10/Materials Mutant | -10/Mines Mutant | -10/Exiles Mutant | -9/Mines Mutant | -8/Materials Scavenger-Mutant | -8/Garrison Scavenger-Mutant | -8/Materials Scavenger-Mutant | -8/Storage Scavenger-Mutant | -7/Factory Scavenger-Mutant | -7/Lower Caves Scavenger-Mutant | -7/Lower Caves Scavenger-Mutant | -7/Zion Scavenger-Mutant | -7/Deep Caves Golem | -6/Proximity Caves Golem | -6/Factory Commander-Golem | -6/Extension Commander-Mutant | -6/Cetus Commander-Golem | -6/Archives Commander-Golem | -6/Hub_04(d) Scavenger-Golem | -6/Garrison Scavenger-Golem | -5/Factory Scavenger-Golem | -5/Upper Caves Golem | -5/Upper Caves Scavenger-Golem | -5/Warlord Mutant | -4/Proximity Caves Scavenger-Mutant | -4/Factory Scavenger-Mutant | -4/Upper Caves Mutant | -4/Upper Caves Mutant | -4/Zhirov Mutant | -3/Proximity Caves Mutant | -3/Research Scavenger-Mutant | -3/Testing Mutant | -2/Research Mutant | -2/Quarantine Alien-Mutant | -2/Section 7 Alien-Mutant | -2/Garrison Alien-Mutant | -1/Access Alien-Mutant | -1/Command Alien-Mutant | -1/Access_0 Resources | -11 -10 -10 -10 -9 -8 -8 -8 -8 -7 -7 -7 -7 -7 -6 -6 -6 -6 -6 -6 -6 -5 -5 -5 -5 -4 -4 -4 -4 -4 -3 -3 -3 -2 -2 -2 -2 -1 -1 -1 ----------- Run | Jun Mat Min Exi Min Mat Gar Mat Sto Fac Low Low Zio Dee Pro Fac Ext Cet Arc Hub Gar Fac Upp Upp War Pro Fac Upp Upp Zhi Pro Res Tes Res Qua Sec Gar Acc Com Ac0 Matter Collected 16886 | 288 482 65 40 9 . 1047 283 196 319 561 459 42 772 796 614 773 302 231 38 561 78 47 121 149 70 119 70 10 101 319 131 1341 77 809 1408 1021 1129 1833 175 Remotely 1911 | 37 . . . . . . . . . . . . . . . . . . . . . . . . . . . . . . . 298 . 230 534 151 201 460 . Salvage Created 89328 | 181 640 187 . . . 1105 526 815 810 801 742 . 1121 998 629 621 809 435 84 1649 382 222 477 310 1202 722 345 135 213 1322 552 2962 126 1758 3167 3375 15479 43322 1104 Parts 2016 | 17 32 9 . . . 41 30 40 54 36 38 . 35 35 23 21 26 29 10 73 24 7 19 8 45 22 20 7 2 48 31 142 6 86 101 42 228 613 16 Haulers Intercepted 11 | . 2 . . . . . 1 5 . . . . . 1 . . . . . . . . . . . 1 . . . . . . . . . . 1 . . Recyclers Shooed 19 | . 3 1 . . . . 4 1 2 . . . . . 3 . . . . . . . . . . . . . . . . 1 1 . 1 . . 2 . Parts Field Recycled . | . . . . . . . . . . . . . . . . . . . . . . . . . . . . . . . . . . . . . . . . Retrieved Matter . | . . . . . . . . . . . . . . . . . . . . . . . . . . . . . . . . . . . . . . . . Parts Self-Destructed 195 | . . . . . . . . . . 26 31 . . 32 . . . . . . . 1 19 . 44 . 18 7 2 15 . . . . . . . . . Prevented 34 | . . . . . . . . . . . 2 . . . . . . . . . . . . . . . . . . 32 . . . . . . . . . Kills | -11 -10 -10 -10 -9 -8 -8 -8 -8 -7 -7 -7 -7 -7 -6 -6 -6 -6 -6 -6 -6 -5 -5 -5 -5 -4 -4 -4 -4 -4 -3 -3 -3 -2 -2 -2 -2 -1 -1 -1 ------- Run | Jun Mat Min Exi Min Mat Gar Mat Sto Fac Low Low Zio Dee Pro Fac Ext Cet Arc Hub Gar Fac Upp Upp War Pro Fac Upp Upp Zhi Pro Res Tes Res Qua Sec Gar Acc Com Ac0 Combat Hostiles Destroyed 1173 | . 9 2 . . . 28 4 10 10 16 14 . 44 18 9 12 6 2 1 32 8 . 11 7 15 9 6 2 . 18 7 41 1 21 34 43 179 542 12 Melee 3 | . . . . . . . . . . . . . . . . . . . . 1 . . . . . . . . . . . 2 . . . . . . . Guns 39 | . 9 2 . . . 15 4 . . 8 . . 1 . . . . . . . . . . . . . . . . . . . . . . . . . . Cannons 263 | . . . . . . 13 . 10 10 . 11 . 1 12 5 12 . 2 1 31 8 . 11 7 14 8 5 2 . 4 7 31 . 16 9 9 7 16 1 AOE 231 | . . . . . . . . . . 8 3 . 39 6 4 . 2 . . . . . . . . 1 . . . 6 . . . . 6 12 30 114 . Classes Destroyed 37 | 2 5 2 . . . 3 . . . 3 1 . 4 3 . 1 . . . 1 . 1 . 2 . . . . . 1 1 . . 1 1 . 3 2 . Worker 26 | . . 3 . . . . . 1 1 . . . . . 1 . . . . . . . . . . . . . . . . 1 . . 2 . 3 14 . Builder 25 | . 1 1 . . . . 1 . 3 . . . . . . . . . 2 . 1 . . . . . . . . . . 2 . . 4 . 10 . . Tunneler 7 | 4 . . . . . . . . . . . . . . . . . . . . . . . . . . . . . . . . . . . . 3 . . Hauler 11 | . 2 . . . . . 1 5 . . . . . 1 . . . . . . . . . . . 1 . . . . . . . . . . 1 . . Recycler 26 | 1 1 1 . . . . 3 2 4 . . . . . 2 . . . . . . . . . . . . . . . . 1 . . 3 . 1 7 . Carrier 7 | . . . . . . . . . . . . . . . . . . . . . . . . . . . . . . . . . . . . . 5 2 . Minesweeper 1 | . . . . . . . . . . . . . . . . . . . . . . 1 . . . . . . . . . . . . . . . . . Mechanic 26 | . . . . . . . . . . . . . . . . . . . . . . . . . . . . . . . . . . . 1 . 12 13 . Operator 16 | . 1 . . . . . . . . . . . . . . . . 9 . . . . . . . . . . . . 1 . . . 1 . . 4 . Drone 4 | . . . . . . . . . . . . . . 2 . . . . . . . . . . . . . . . 2 . . . . . . . . . Watcher 27 | . 1 . . . . . 2 2 1 . . . . . 3 . 1 . . . . . . . . . . . . . 1 3 . 3 2 . 1 7 . Swarmer 135 | . . 2 . . . 3 2 4 2 7 5 . . 4 4 . . . . 15 4 . 5 1 . . 3 . . 1 2 3 . . 5 18 4 41 . Cutter 12 | . . . . . . . . . . . . . . . . . . . . . . . . . . . . . . . . . . . . . . 12 . Saboteur 41 | . . . . . . . . . . . . . . . . . . . . . . . . . . . . . . 1 . 1 . . . . 11 28 . Grunt 334 | . 9 . . . . 15 . 3 2 7 . . . 5 4 8 . . . 5 . . 3 1 8 6 1 . . 6 . 13 . 6 9 17 61 145 . Brawler 61 | . . . . . . . . . . 1 . . . . . . . . . 5 . . . . 2 . . . . 4 . . . . . . 12 37 . Duelist 64 | . . . . . . . . . . . . . . . . . . . . 2 . . 1 . 2 . . . . 3 . 2 . . . 1 8 45 . Protector 31 | . . . . . . . . . . . . . . 1 . . . . . . . . . . . . . . . . . . . . . . 12 18 . Sentry 49 | . . . . . . 5 2 3 2 . . . . 1 . 4 . 2 . 4 1 . . . 2 1 . 1 . 1 2 3 . 2 6 1 1 5 . Demolisher 14 | . . . . . . . . . . . . . . . . . . . . . . . . 2 . . . . . . . . . . . . . 12 . Specialist 29 | . . . . . . . . . . . 3 . . 1 . . . . . 1 . . . . . . . . . . . . . . . . . 24 . Hunter 88 | . . . . . . 2 . . . 1 4 . . 3 . . . . . . 1 . . . . . . . . . . 4 . . 2 3 9 59 . Programmer 160 | . . . . . . 3 . . 4 . 2 . . 1 1 . . . 1 . 2 . 2 1 . 2 1 1 . . 2 13 . 12 9 1 31 71 . Heavy 4 | . . . . . . . . . . . . . . . . . . . . . . . . . . . . . . . 1 . . . 1 . . 2 . Behemoth 13 | . . . . . . . . . . . . . . . . 1 . . . 1 . . . . 1 . 1 . . . . . 1 . . 2 2 4 . Cetus Guard 6 | . . . . . . . . . . . . . . . . . 6 . . . . . . . . . . . . . . . . . . . . . . S7 Guard 2 | . . . . . . . . . . . . . . . . . . . . . . . . . . . . . . . . . . . 2 . . . . M Guard 2 | . . . . . . . . . . . . . . . . . . . . . . . . . . . . . . . . . . . . . . 2 . Enhanced Grunt 6 | . . . . . . . . . . . . . 1 . . . . . . . . . . . . . . . . . . . . . . . . . 5 Enhanced Hunter 4 | . . . . . . . . . . . . . . . . . . . . . . . . . . . . . . . . . . . . . . . 4 Combat Programmer 2 | . . . . . . . . . . . . . . . . . . . . . . . . . . . . . . . . . . . . . . 2 . Investigator 4 | . . . . . . . . . . . . . . . . . . . . . . . . . . . . . . . . . . . . . 3 1 . Striker 28 | . . . . . . . . . . . . . . . . . . . . . . . . 2 . . . . . . . 2 . . . . 14 10 . Executioner 35 | . . . . . . . . . . . . . . . . . . . . . . . . . . . . . . . . . . . . . 14 21 . Alpha 7 2 | . . . . . . . . . . . . . . . . . . . . . . . . . . . . . . . . . . . . . . 2 . Fortress 1 | . . . . . . . . . . . . . . . . . . . . . . . . . . . . . . . . . . 1 . . . . . Z-Light 6 | . . . . . . . . . . . . . 6 . . . . . . . . . . . . . . . . . . . . . . . . . . Decomposer 1 | . . . . . . . . . . 1 . . . . . . . . . . . . . . . . . . . . . . . . . . . . . Samaritan 3 | . . . . . . . . . . 1 . . . . . . . . . . . 1 . . . . 1 . . . . . . . . . . . . Tinkerer 2 | . . . . . . . . . . . . . . 1 . . . . . . . 1 . . . . . . . . . . . . . . . . . Assembler 2 | . . . . . . . . . . . . . 2 . . . . . . . . . . . . . . . . . . . . . . . . . . Assembled 35 | . . . . . . . . . . . . . 35 . . . . . . . . . . . . . . . . . . . . . . . . . . Golem 3 | . . . . . . . . . . . . . 3 . . . . . . . . . . . . . . . . . . . . . . . . . . Thug 2 | . . . . . . . . . . 1 . . . . . . 1 . . . . . . . . . . . . . . . . . . . . . . Savage 2 | . . . . . . . . . . . . . . . . 1 1 . . . . . . . . . . . . . . . . . . . . . . Guerrilla 4 | . . . . . . . . . . . . . . . . 1 3 . . . . . . . . . . . . . . . . . . . . . . Mutant 2 | . . . . . . . . . . 1 1 . . . . . . . . . . . . . . . . . . . . . . . . . . . . Best Kill Streak 47 | 3 3 2 . . . 6 4 7 3 5 6 . 37 5 6 2 4 3 2 12 5 1 5 2 10 3 3 1 . 14 3 7 1 4 24 12 22 47 3 Combat Bots Only 47 | . 3 2 . . . 6 2 4 3 5 6 . 35 4 4 2 3 2 1 12 5 . 5 2 10 3 3 1 . 14 2 7 1 4 18 22 19 47 3 Max Kills in Single Turn 29 | 1 1 1 . . . 1 1 1 1 5 3 . 29 3 4 1 2 1 2 2 1 1 2 1 1 1 1 1 . 2 1 1 1 1 5 3 7 9 1 Gunslinging . | . . . . . . . . . . . . . . . . . . . . . . . . . . . . . . . . . . . . . . . . Exploded 28 | . . . . . . . . . . 4 3 . 28 3 3 . 1 . . . . . . . . 1 . . . 2 . . . . 2 2 2 4 . Melee 1 | . . . . . . . . . . . . . . . . . . . . 1 . . . . . . . . . . . 1 . . . . . . . Uniques/NPCs Destroyed 6 | . . . . . . . . . . . . . 1 . . . . . . . . . . . . . . . . . . . . . . . . 2 3 Z-Imprinter (-7/Deep Caves) MAIN.C Shell (-1/Command) MAIN.C (-1/Command) A8 (-1/Access_0) A6 (-1/Access_0) Architect (-1/Access_0) Combat | -11 -10 -10 -10 -9 -8 -8 -8 -8 -7 -7 -7 -7 -7 -6 -6 -6 -6 -6 -6 -6 -5 -5 -5 -5 -4 -4 -4 -4 -4 -3 -3 -3 -2 -2 -2 -2 -1 -1 -1 -------- Run | Jun Mat Min Exi Min Mat Gar Mat Sto Fac Low Low Zio Dee Pro Fac Ext Cet Arc Hub Gar Fac Upp Upp War Pro Fac Upp Upp Zhi Pro Res Tes Res Qua Sec Gar Acc Com Ac0 Damage Taken 28309 | . 313 29 301 . . 1874 113 427 532 527 963 . 1560 1639 322 803 454 59 233 2236 782 . 410 817 1068 361 75 85 . 901 152 1978 32 932 1055 438 1329 3747 1762 Core 2832 | . 78 16 29 . . 338 26 49 68 75 108 . 134 209 21 23 . 10 6 144 41 . 23 35 71 10 11 30 . 69 . 108 . 25 247 20 120 473 215 Absorbed by Shields 13883 | . . . . . . . . . . . . . . 16 119 331 166 21 102 879 300 . 157 189 323 174 29 49 . 173 145 2003 32 964 869 463 1381 3290 1708 Reduced by Siege Mode 758 | . . . . . . . . . . . . . . . . . . . . 110 19 . 19 . 35 10 . . . . . 102 . 63 26 . 69 305 . Redirected to Shielding 166 | . . . . . . . . . . . . . 63 . . . . . . . . . . . . . . . . . . . . . . . . 43 60 Regen/Repaired (Parts) 8475 | . . . . . . . 47 . . . . . . . . . . . . . . . . 340 . . . . . . . 1009 22 313 1996 627 464 1582 2075 Core Remaining (%) 60 | 100 . . . 50 . . . 24 . . . . . 15 . . . . . 76 . . . . 83 . . . . 89 . 91 . . . 55 . . 22 Volleys Fired 2995 | 7 52 17 4 . . 122 38 63 53 49 45 4 55 81 39 49 16 41 9 108 32 27 37 59 46 39 48 26 2 67 46 230 29 119 139 91 306 750 50 Largest 2 | 2 2 2 1 . . 2 2 2 2 2 2 1 2 2 2 1 1 2 2 2 2 2 2 2 2 2 1 1 1 1 1 2 1 1 1 1 2 1 1 Hottest 250 | 40 130 130 20 . . 131 150 150 115 50 65 105 110 115 92 80 80 80 50 80 50 50 50 50 50 50 25 88 88 88 25 188 25 100 250 250 250 250 250 Shots Fired 3651 | 14 103 32 4 . . 211 58 120 91 89 72 4 89 120 42 51 17 43 18 156 63 38 63 79 89 60 48 28 2 67 46 241 29 118 140 91 315 750 50 Gun 415 | 14 102 30 4 . . 107 22 . 4 75 3 . 54 . . . . . . . . . . . . . . . . . . . . . . . . . . Cannon 3122 | . . . . . . 100 36 120 87 4 55 4 17 116 36 50 2 43 18 136 63 38 63 79 89 60 48 28 2 57 46 241 29 118 136 91 310 750 50 Launcher 51 | . . . . . . . . . . 2 1 . 5 4 6 . 14 . . . . . . . . . . . . 10 . . . . 4 . 5 . . Special 63 | . 1 2 . . . 4 . . . 8 13 . 13 . . 1 1 . . 20 . . . . . . . . . . . . . . . . . . . Kinetic 522 | 14 90 20 4 . . 52 3 . 4 75 3 . 24 14 36 50 2 7 . 18 . . . . . . . . . . . 18 . 13 15 36 . 24 . Thermal 2899 | . 13 12 . . . 145 33 120 87 12 68 4 30 102 . . . 36 18 138 63 38 63 79 89 60 48 25 . 45 46 177 29 84 94 55 310 726 50 Explosive 12 | . . . . . . . . . . 2 1 . 5 4 . . . . . . . . . . . . . . . . . . . . . . . . . Electromagnetic 216 | . . . . . . 14 22 . . . . . 30 . 6 . 14 . . . . . . . . . . 3 2 22 . 46 . 21 31 . 5 . . Robot Hit Streak 103 | 6 10 7 . . . 13 10 9 12 19 12 . 14 13 7 7 1 7 2 25 10 14 17 9 36 16 15 8 4 7 20 37 . 9 13 27 32 103 15 Robot Miss Streak 8 | 1 5 3 . . . 4 8 3 3 5 1 . 3 3 4 3 2 6 2 2 2 . 2 2 1 3 1 1 . 2 2 3 1 2 8 3 6 5 3 Penetration Max 1 | . . . . . . 1 . . . . . . . . . . . . . . . . . . . . . . . . . . . . . . . . . Secondary Targets 2 | . 1 . . . . . . . . 1 . . . . . . . . . . . . . . . . . . . . . . . . . . . . . Max Gunslinging Chain 1 | . 1 . . . . . . . . 1 . . . . . . . . . . . . . . . . . . . . . . . . . . . . . Capacitor 1637 | . . . . . . . . . . . . . . . . . . . . . . . . . . 16 48 28 2 57 46 197 28 28 107 55 292 683 50 Shots Hit Robots 1867 | 9 69 22 . . . 117 30 75 44 64 52 . 62 62 18 29 2 28 4 106 33 13 26 32 67 37 18 10 3 21 22 142 1 53 73 56 131 302 34 Core Hits 3187 | 8 37 14 . . . 82 16 24 22 50 29 . 131 40 15 14 21 15 2 47 12 3 11 16 25 15 8 3 2 25 13 69 . 30 84 124 510 1617 53 Critical Kills 8 | . 1 . . . . 6 1 . . . . . . . . . . . . . . . . . . . . . . . . . . . . . . . . Critical Parts Destroyed 10 | . . . . . . 9 1 . . . . . . . . . . . . . . . . . . . . . . . . . . . . . . . . Critical Strikes 45 | . 1 . . . . 21 2 . . . 1 . . . 2 5 . . . 6 . . . . . . . . . . . 2 . . 3 2 . . . Burn 6 | . . . . . . 6 . . . . . . . . . . . . . . . . . . . . . . . . . . . . . . . . . Destroy 18 | . 1 . . . . 15 2 . . . . . . . . . . . . . . . . . . . . . . . . . . . . . . . . Blast 17 | . . . . . . . . . . . . . . . 2 5 . . . 4 . . . . . . . . . . . 1 . . 3 2 . . . Corrupt 1 | . . . . . . . . . . . . . . . . . . . . . . . . . . . . . . . . 1 . . . . . . . Sever 2 | . . . . . . . . . . . 1 . . . . . . . . 1 . . . . . . . . . . . . . . . . . . . Impale 1 | . . . . . . . . . . . . . . . . . . . . 1 . . . . . . . . . . . . . . . . . . . Melee Attacks 25 | . . . . . . . . . . . . . 2 . . 1 . . . 4 . . . . 5 . 1 . 1 . . 3 1 4 2 1 . . . Kinetic 6 | . . . . . . . . . . . . . . . . . . . . . . . . . . . . . . . . . . 4 1 1 . . . Impact . | . . . . . . . . . . . . . . . . . . . . . . . . . . . . . . . . . . . . . . . . Slashing . | . . . . . . . . . . . . . . . . . . . . . . . . . . . . . . . . . . . . . . . . Piercing 19 | . . . . . . . . . . . . . 2 . . 1 . . . 4 . . . . 5 . 1 . 1 . . 3 1 . 1 . . . . Sneak Attacks 2 | . . . . . . . . . . . . . . . . 1 . . . . . . . . . . . . . . . . . . 1 . . . . Combat Hostiles . | . . . . . . . . . . . . . . . . . . . . . . . . . . . . . . . . . . . . . . . . Follow-up Attacks . | . . . . . . . . . . . . . . . . . . . . . . . . . . . . . . . . . . . . . . . . Damage Inflicted 140527 | 91 760 255 . 7 . 2107 642 2093 1373 1492 1558 . 4042 3442 1835 2588 1722 1443 619 4861 1452 508 1276 1710 3012 2253 759 470 67 2008 1028 7859 44 3192 5206 5112 14484 52285 6872 Guns 3975 | 91 732 250 . . . 1059 226 . 17 857 18 . 725 . . . . . . . . . . . . . . . . . . . . . . . . . . Cannons 61322 | . . . . . . 1048 349 2046 1326 34 1166 . 359 2748 1456 2517 122 1443 234 4309 1427 500 1276 1710 2950 1750 759 470 67 646 1028 7748 44 3035 3012 1757 2533 7992 3461 Explosions 73718 | . . . . . . . 30 . . 516 241 . 2893 694 369 . 1600 . 385 89 . . . . . 479 . . . 1362 . . . . 2119 3355 11951 44224 3411 Melee 464 | . . . . . . . . . . . . . . . . 64 . . . 132 . . . . 62 . . . . . . . . 157 49 . . . . Ramming 434 | . 28 5 . 7 . . 37 47 30 . . . . . 10 7 . . . . 25 8 . . . 24 . . . . . 111 . . 26 . . 69 . Kinetic 14355 | 91 676 150 . . . 471 49 . 17 857 18 . 305 444 1456 2517 122 399 . 1395 . . . . . . . . . . . 1930 . 1024 848 1029 . 557 . Thermal 113275 | . 56 100 . . . 1636 330 2046 1326 119 1299 . 424 2304 . . 325 1044 234 3245 1427 500 1276 1710 2950 2229 759 470 . 563 1028 4213 44 1393 3127 4083 14484 51659 6872 Explosive 4433 | . . . . . . . . . . 516 241 . 2893 694 . . . . . 89 . . . . . . . . . . . . . . . . . . . Electromagnetic 7723 | . . . . . . . 226 . . . . . 420 . 369 . 1275 . 385 . . . . . . . . . 67 1445 . 1605 . 775 1156 . . . . Impact . | . . . . . . . . . . . . . . . . . . . . . . . . . . . . . . . . . . . . . . . . Slashing . | . . . . . . . . . . . . . . . . . . . . . . . . . . . . . . . . . . . . . . . . Piercing 307 | . . . . . . . . . . . . . . . . 64 . . . 132 . . . . 62 . . . . . . . . . 49 . . . . Highest Corruption 48 | . . . . . . 3 3 3 3 3 5 5 1 6 . 9 48 48 17 29 1 1 1 . . 3 3 3 3 3 1 13 . 5 5 . . . . Average Corruption 5 | . . . . . . 2 3 3 2 3 3 5 1 4 . 5 36 31 16 17 1 1 1 . . 2 3 3 3 3 1 4 . 3 3 . . . . Corruption Purged 37 | . . . . . . . . . . . . . . . . . . 32 . . . . 1 . . . . . . . . . . . 4 . . . . Corruption Blocked 2 | . . . . . . . . . . . . . . . . . . . . . . . . 2 . . . . . . . . . . . . . . . Effects 599 | . . . . . . 28 14 16 25 32 30 4 13 43 . 48 18 44 31 93 3 10 6 . . 12 16 13 7 14 4 45 . 21 9 . . . . Message Errors 152 | . . . . . . 6 6 3 7 11 6 1 2 13 . 12 7 11 7 27 1 2 2 . . 3 2 4 2 3 . 9 . 2 3 . . . . Matter Fused 136 | . . . . . . 7 1 3 6 11 6 3 5 9 . 13 . 7 7 17 1 2 2 . . 2 1 3 4 6 . 12 . 6 2 . . . . Heat Flow Errors 66 | . . . . . . 2 1 1 3 1 6 . 1 6 . 6 2 5 3 11 1 . . . . 4 2 1 . . 1 5 . 4 . . . . . Energy Discharges 72 | . . . . . . 4 2 2 2 2 8 . 3 4 . 2 3 7 2 7 . 3 1 . . 2 4 2 . . 2 5 . 3 2 . . . . Parts Rejected 8 | . . . . . . . 1 . 1 . . . . . . 1 . . 1 2 . . 1 . . . . . . 1 . . . . . . . . . Parts Fused 4 | . . . . . . . . . 1 . . . . . . . . 1 . 1 . . . . . . . . . . . 1 . . . . . . . Data Loss (minor) 71 | . . . . . . 2 3 4 3 2 2 . 2 3 . 4 2 5 6 12 . 1 . . . . 2 1 . 3 1 8 . 4 1 . . . . Data Loss (major) 28 | . . . . . . 2 . 1 . 1 2 . . 3 . 4 1 4 . 5 . . . . . . 2 . 1 . . 1 . 1 . . . . . Misfires 29 | . . . . . . 3 . 1 1 3 . . . 3 . 3 1 1 2 4 . . . . . 1 1 2 . . . 2 . . 1 . . . . Alerts 12 | . . . . . . . . . . 1 . . . . . 2 2 . 2 . . 2 . . . . 1 . . 1 . 1 . . . . . . . Misdirections 4 | . . . . . . . . . . . . . . . . . . 1 1 2 . . . . . . . . . . . . . . . . . . . Weapon Failures 17 | . . . . . . 2 . 1 1 . . . . 2 . 1 . 2 . 5 . . . . . . 1 . . . . 1 . 1 . . . . . Overload Shots 3 | . . . . . . . . . . . . 3 . . . . . . . . . . . . . . . . . . . . . . . . . . . Overflow Damage 4013 | . . . . . . . 10 41 41 6 45 . 120 164 236 254 10 50 34 230 120 141 54 31 22 198 137 . . 45 2 524 14 254 436 19 129 540 106 Projectiles 3442 | . . . . . . . 10 41 41 . 45 . 58 150 228 251 . 50 3 230 120 141 54 31 22 127 137 . . 45 2 524 14 254 430 . 98 296 40 Explosions 568 | . . . . . . . . . . 6 . . 62 14 8 . 10 . 31 . . . . . . 71 . . . . . . . . 6 19 31 244 66 Melee 3 | . . . . . . . . . . . . . . . . 3 . . . . . . . . . . . . . . . . . . . . . . . Knockbacks 39 | . . . . . . 1 . 1 . . . . . 2 11 10 . . . . . . . . . . . . . . . 5 . 2 4 . . 3 . Impact 1 | . . . . . . . . 1 . . . . . . . . . . . . . . . . . . . . . . . . . . . . . . . Kinetic 33 | . . . . . . 1 . . . . . . . 2 10 8 . . . . . . . . . . . . . . . 3 . 2 4 . . 3 . Secondary 5 | . . . . . . . . . . . . . . . 1 2 . . . . . . . . . . . . . . . 2 . . . . . . . Self-Inflicted Damage 1028 | . . . . . . . . . . . . . 30 43 . . 179 . 77 58 . . . . . 123 . . . 110 . . . . 13 36 90 89 180 Shots 56 | . . . . . . . . . . . . . 1 3 . . 5 . 1 1 . . . . . 2 . . . 6 . . . . 3 7 4 15 8 Rammed 35 | . 6 1 . 1 . . . 5 5 . . . . . . . . . . . 4 . . . . 1 . . . . . 5 . . 1 . . 6 . Targets Rammed 47 | . 6 1 . 1 . . 4 6 7 . . . . . 1 1 . . . . 4 1 . . . 1 . . . . . 7 . . 1 . . 6 . Kicked 6 | . . . . . . . 4 . . . . . . . 1 1 . . . . . . . . . . . . . . . . . . . . . . . Crushed 6 | . . . . . . . . 1 2 . . . . . . . . . . . . 1 . . . . . . . . . 2 . . . . . . . Highest Temperature 382 | . 81 81 . . . 193 244 233 231 170 273 56 382 227 223 259 260 335 187 284 123 . . 33 36 284 257 167 118 271 105 265 . 334 201 201 198 198 178 Average Temperature 151 | . 24 37 . . . 72 59 78 74 19 135 29 80 57 62 69 110 127 82 120 82 . . 24 11 100 127 75 66 108 16 76 . 58 106 100 191 133 112 Received Heat Transfer 3714 | . 171 . . . . 738 27 117 39 144 . . 219 114 111 265 36 . 60 450 42 . 48 100 230 111 . . . 145 8 176 . 76 52 45 101 89 . Effects 18 | . . . . . . . . 1 . . 1 . 1 . . . 2 . . 5 . . . . . . 1 . . . . 1 . . 5 1 . . . Energy Bleed 8 | . . . . . . . . 1 . . 1 . . . . . 2 . . 1 . . . . . . 1 . . . . 1 . . . 1 . . . Interference 9 | . . . . . . . . . . . . . . . . . . . . 4 . . . . . . . . . . . . . . 5 . . . . Short Circuit 1 | . . . . . . . . . . . . . 1 . . . . . . . . . . . . . . . . . . . . . . . . . . Siege Activations 73 | . . . . . . . . . . . . . . . . . . . . 8 2 . 3 . 3 1 3 1 . 1 2 8 . 7 4 1 3 25 1 Total Turns 3832 | . . . . . . . . . . . . . . . . . . . . 190 37 . 78 . 111 17 33 1 . 2 2 154 . 97 16 3 1183 1902 6 Longest Duration 1478 | . . . . . . . . . . . . . . . . . . . . 47 26 . 55 . 59 17 19 1 . 2 1 64 . 22 6 3 1066 1478 6 Robots Corrupted 36 | . . . . . . . . . . . . . 3 . 1 . 7 . . . . . . . . . . . . 8 . 8 . 4 5 . . . . Combat Hostiles 32 | . . . . . . . . . . . . . 3 . . . 4 . . . . . . . . . . . . 8 . 8 . 4 5 . . . . Parts Fried 57 | . . . . . . . . . . . . . . . 3 . 11 . 3 . . . . . . . . . . 7 . 18 . 7 8 . . . . Impact Corruptions 2 | . . . . . . . . . . . . . . . . 1 . . . . . . . . . . . . . . . 1 . . . . . . . Robots Melted 650 | . . . . . . . . . . . . . . . . . . . . . . . . . . . . . . . . . . . 17 29 165 428 11 Combat Hostiles 605 | . . . . . . . . . . . . . . . . . . . . . . . . . . . . . . . . . . . 14 26 142 412 11 Parts Melted 2575 | . . . . . . 6 . 4 7 . 1 . . 2 . . . 3 . 3 1 . 1 1 . . 1 . . . 3 1 . . 68 120 655 1642 56 Heat Transferred 414867 | . 70 115 . . . 3042 444 3027 2020 346 2097 . 583 1131 . . 250 600 125 2315 825 275 700 776 1625 1175 400 250 . 325 575 2200 25 625 12050 21278 79728 268717 7153 Parts Sabotaged 4 | . . . . . . . . . . . . . . 1 . . . . . . . . . . . . . . . . . 3 . . . . . . . Parts Stolen . | . . . . . . . . . . . . . . . . . . . . . . . . . . . . . . . . . . . . . . . . Parts Stripped . | . . . . . . . . . . . . . . . . . . . . . . . . . . . . . . . . . . . . . . . . Power Chain Reactions 5 | . . . . . . . 1 . . . . . . . . . 3 . . . . . . . . . . . . 1 . . . . . . . . . Missiles Intercepted 4 | . . . . . . . . . . . . . . . . . . . . . . . . . . . . . . . . . . . . . . 4 . Alert | -11 -10 -10 -10 -9 -8 -8 -8 -8 -7 -7 -7 -7 -7 -6 -6 -6 -6 -6 -6 -6 -5 -5 -5 -5 -4 -4 -4 -4 -4 -3 -3 -3 -2 -2 -2 -2 -1 -1 -1 ------- Run | Jun Mat Min Exi Min Mat Gar Mat Sto Fac Low Low Zio Dee Pro Fac Ext Cet Arc Hub Gar Fac Upp Upp War Pro Fac Upp Upp Zhi Pro Res Tes Res Qua Sec Gar Acc Com Ac0 Peak Influence 18368 | 25 193 142 . . . 1033 503 383 392 . . . . . 305 1061 1160 685 296 1503 947 . . . . 292 . . . . 836 1129 620 506 905 2578 8626 18368 . Initial 5520 | . 16 30 . . . . 503 131 . . . . . . 150 143 558 384 121 102 788 . . . . . . . . . 264 378 599 190 204 678 1546 5520 . Average 3396 | 14 79 125 . . . 461 299 219 74 . . . . . 199 562 860 531 147 835 803 . . . . 99 . . . . 555 840 500 315 342 1659 5836 11932 . Maximum Alert Level 5 | . . . . . . 3 2 1 1 . . . . . 1 3 4 2 1 4 3 . . . . 1 . . . . 3 4 2 2 3 5 5 5 . Low Security (%) 16 | 100 100 100 . 100 100 31 2 42 88 . . . . . 40 12 . . 80 4 . . . . . 79 . . . . . . . 13 20 . . . . Level 1 15 | . . . . . . 12 81 57 11 . . . . . 59 39 . 9 19 14 . . . . . 20 . . . . 15 2 10 75 56 . . . . Level 2 9 | . . . . . . 17 16 . . . . . . . . 10 29 90 . 20 7 . . . . . . . . . 79 16 89 10 8 4 . . . Level 3 11 | . . . . . . 38 . . . . . . . . . 36 54 . . 36 92 . . . . . . . . . 4 64 . . 15 17 . . . Level 4 3 | . . . . . . . . . . . . . . . . . 15 . . 24 . . . . . . . . . . . 17 . . . 13 2 . . Level 5 12 | . . . . . . . . . . . . . . . . . . . . . . . . . . . . . . . . . . . . 64 5 37 . High Security 31 | . . . . . . . . . . . . . . . . . . . . . . . . . . . . . . . . . . . . . 91 62 . Max Security . | . . . . . . . . . . . . . . . . . . . . . . . . . . . . . . . . . . . . . . . . Sterilizations 1 | . . . . . . . . . . . . . . . . . . . . . . . . . . . . . . . . . . . . . 1 . . Squads Dispatched 134 | . 5 . . . . . 2 1 4 . . . . . 2 7 . . 1 . 5 . . . 1 3 . . . 1 . 8 1 7 10 . 38 38 . Investigation 12 | . 3 . . . . . 1 1 2 . . . . . . 2 . . . . . . . . . 2 . . . . . . . . 1 . . . . Extermination 18 | . . . . . . . . . 2 . . . . . 2 . . . 1 . . . . . . 1 . . . . . 3 . 4 4 . 1 . . Reinforcement 20 | . 2 . . . . . 1 . . . . . . . . 3 . . . . 1 . . . . . . . . . . 2 1 3 2 . 3 2 . Assault 78 | . . . . . . . . . . . . . . . . 2 . . . . 1 . . . 1 . . . . 1 . 3 . . . . 34 36 . Garrison 6 | . . . . . . . . . . . . . . . . . . . . . 3 . . . . . . . . . . . . . 3 . . . . Intercept . | . . . . . . . . . . . . . . . . . . . . . . . . . . . . . . . . . . . . . . . . Searches Triggered . | . . . . . . . . . . . . . . . . . . . . . . . . . . . . . . . . . . . . . . . . Construction Impeded 7 | . . . . . . . . . . . . . . . . 1 . . . . 1 . . . . . . . . . . 1 . . 1 . 3 . . Haulers Reinforced . | . . . . . . . . . . . . . . . . . . . . . . . . . . . . . . . . . . . . . . . . Active Scanning Responses . | . . . . . . . . . . . . . . . . . . . . . . . . . . . . . . . . . . . . . . . . Cargo Convoy Interrupts . | . . . . . . . . . . . . . . . . . . . . . . . . . . . . . . . . . . . . . . . . Stealth | -11 -10 -10 -10 -9 -8 -8 -8 -8 -7 -7 -7 -7 -7 -6 -6 -6 -6 -6 -6 -6 -5 -5 -5 -5 -4 -4 -4 -4 -4 -3 -3 -3 -2 -2 -2 -2 -1 -1 -1 --------- Run | Jun Mat Min Exi Min Mat Gar Mat Sto Fac Low Low Zio Dee Pro Fac Ext Cet Arc Hub Gar Fac Upp Upp War Pro Fac Upp Upp Zhi Pro Res Tes Res Qua Sec Gar Acc Com Ac0 Distress Signals 37 | . 1 . . . . . 1 . . . . . . 1 . 3 2 . 2 . . . . 1 . . . . . . 1 2 7 2 2 . 1 11 . Communications Jammed 106 | . . . . . . . . . . . . . . . . . . . . . . . . . . . . . . . 26 5 . 2 71 . 2 . . Distress Signals 102 | . . . . . . . . . . . . . . . . . . . . . . . . . . . . . . . 24 5 . 2 69 . 2 . . Times Spotted 1214 | . 19 3 7 . . 29 12 12 13 20 14 . 48 23 16 44 13 20 7 38 15 . 13 90 19 9 7 2 . 20 18 53 2 30 40 41 144 348 25 Peak Tracking Total 47 | . 3 2 9 . . 6 4 4 3 6 4 . 37 10 4 12 5 2 3 12 5 . 5 18 7 3 4 1 . 10 5 5 1 5 9 7 19 47 4 Tactical Retreats 33 | . 2 1 . . . 4 1 . 1 4 . . . 2 2 2 . . 1 2 1 . 2 . 2 . 1 . . 1 1 . . 1 1 . 1 . . Traps | -11 -10 -10 -10 -9 -8 -8 -8 -8 -7 -7 -7 -7 -7 -6 -6 -6 -6 -6 -6 -6 -5 -5 -5 -5 -4 -4 -4 -4 -4 -3 -3 -3 -2 -2 -2 -2 -1 -1 -1 ------- Run | Jun Mat Min Exi Min Mat Gar Mat Sto Fac Low Low Zio Dee Pro Fac Ext Cet Arc Hub Gar Fac Upp Upp War Pro Fac Upp Upp Zhi Pro Res Tes Res Qua Sec Gar Acc Com Ac0 Traps Triggered 33 | . 2 . . . . 4 . . . . . . . . . 5 . . . 6 . . . . . . . . . . . . . 1 1 1 12 1 . Indirectly 4 | . . . . . . . . . . . . . . . . . . . . . . . . . . . . . . . . . . 1 . . 3 . . Trap Hack Attempts . | . . . . . . . . . . . . . . . . . . . . . . . . . . . . . . . . . . . . . . . . Triggered . | . . . . . . . . . . . . . . . . . . . . . . . . . . . . . . . . . . . . . . . . Disarmed . | . . . . . . . . . . . . . . . . . . . . . . . . . . . . . . . . . . . . . . . . Reprogrammed . | . . . . . . . . . . . . . . . . . . . . . . . . . . . . . . . . . . . . . . . . Reused . | . . . . . . . . . . . . . . . . . . . . . . . . . . . . . . . . . . . . . . . . Traps Extracted . | . . . . . . . . . . . . . . . . . . . . . . . . . . . . . . . . . . . . . . . . Installed . | . . . . . . . . . . . . . . . . . . . . . . . . . . . . . . . . . . . . . . . . Triggered 14 | . . . . . . . . . . . 1 . . . . . . . . . . . . 12 . . . . . 1 . . . . . . . . . Machines | -11 -10 -10 -10 -9 -8 -8 -8 -8 -7 -7 -7 -7 -7 -6 -6 -6 -6 -6 -6 -6 -5 -5 -5 -5 -4 -4 -4 -4 -4 -3 -3 -3 -2 -2 -2 -2 -1 -1 -1 ---------- Run | Jun Mat Min Exi Min Mat Gar Mat Sto Fac Low Low Zio Dee Pro Fac Ext Cet Arc Hub Gar Fac Upp Upp War Pro Fac Upp Upp Zhi Pro Res Tes Res Qua Sec Gar Acc Com Ac0 Machines Disabled 151 | . . . 1 . . 11 3 3 1 . 1 3 2 1 3 2 2 4 3 8 1 1 . 1 . 8 . . . 1 3 4 . 5 11 16 40 8 4 Max in Single Turn 4 | . . . 1 . . 1 1 1 1 . 1 1 1 1 1 1 1 1 2 2 1 1 . 1 . 4 . . . 1 1 1 . 2 1 2 1 2 1 Garrison Access 10 | . . . . . . . . . 2 . . . . . 1 . . . . . . . . . . . . . . . . 1 1 . . . 5 . . Garrison Relay 10 | . . . . . . 3 . . . . . . . . . . . . . 2 . . . . . . . . . . . . . . . 5 . . . Phase Generator 3 | . . . . . . . . . . . . . . . . . . . . 1 . . . . . . . . . . . . . . . 1 . 1 . Network Hub 1 | . . . . . . . . . . . . . . . . . . . 1 . . . . . . . . . . . . . . . . . . . . Energy Cycler 2 | . . . . . . . . . . . . . . . . . . . . . . . . . . . . . . . . . . . . . 2 . . Machines Repaired . | . . . . . . . . . . . . . . . . . . . . . . . . . . . . . . . . . . . . . . . . Machines Sabotaged . | . . . . . . . . . . . . . . . . . . . . . . . . . . . . . . . . . . . . . . . . Overloaded Fab Kills . | . . . . . . . . . . . . . . . . . . . . . . . . . . . . . . . . . . . . . . . . Hacking | -11 -10 -10 -10 -9 -8 -8 -8 -8 -7 -7 -7 -7 -7 -6 -6 -6 -6 -6 -6 -6 -5 -5 -5 -5 -4 -4 -4 -4 -4 -3 -3 -3 -2 -2 -2 -2 -1 -1 -1 --------- Run | Jun Mat Min Exi Min Mat Gar Mat Sto Fac Low Low Zio Dee Pro Fac Ext Cet Arc Hub Gar Fac Upp Upp War Pro Fac Upp Upp Zhi Pro Res Tes Res Qua Sec Gar Acc Com Ac0 Machines Accessed 107 | . 4 1 2 . 2 4 6 5 11 1 1 . . . 7 10 . . 7 1 3 2 . 2 . 3 . . 4 . 7 10 . 4 4 1 5 . . Terminals 64 | . 3 1 . . . 4 3 3 6 . . . . . 4 10 . . 6 1 1 . . . . . . . . . 6 5 . 3 3 1 4 . . Fabricators 6 | . . . . . . . . . . . . . . . 1 . . . . . 1 . . . . 2 . . . . 1 1 . . . . . . . Repair Stations 4 | . . . . . . . 1 1 1 . . . . . . . . . . . . . . . . . . . . . . 1 . . . . . . . Recycling Units 10 | . 1 . . . 1 . 2 1 2 . . . . . 1 . . . . . . . . . . 1 . . . . . . . . . . 1 . . Scanalyzers 3 | . . . . . . . . . . . . . . . . . . . . . . . . . . . . . . . . 2 . 1 . . . . . Garrison Access 8 | . . . . . 1 . . . 2 . . . . . 1 . . . 1 . 1 . . . . . . . . . . 1 . . 1 . . . . Total Hacks 276 | . 7 3 2 . 2 6 16 12 29 8 1 . . . 27 21 . . 10 2 8 3 . 8 . 15 . . 17 . 21 28 . 7 10 2 11 . . Successful 114 | . 3 1 2 . 2 2 5 5 9 8 1 . . . 11 7 . . 1 1 2 3 . 8 . 5 . . 17 . 6 8 . 2 3 1 1 . . Failed 162 | . 4 2 . . . 4 11 7 20 . . . . . 16 14 . . 9 1 6 . . . . 10 . . . . 15 20 . 5 7 1 10 . . Catastrophic 36 | . . . . . . 1 2 1 4 . . . . . . 5 . . 4 . 2 . . . . 1 . . . . 4 6 . 1 2 . 3 . . Database Lockouts . | . . . . . . . . . . . . . . . . . . . . . . . . . . . . . . . . . . . . . . . . Manual 45 | . 5 . 1 . . . 2 2 8 . . 1 . . 4 1 1 . . . 6 . . . . . . . . . 1 6 . 5 . . 2 . . Terminals 158 | . 6 3 . . . 6 8 7 18 . . . . . 18 21 . . 9 2 6 . . . . . . . . . 19 10 . 6 8 2 9 . . Fabricators 18 | . . . . . . . . . . . . . . . 2 . . . . . 1 . . . . 12 . . . . 2 1 . . . . . . . Repair Stations 19 | . . . . . . . 4 4 1 . . . . . . . . . . . . . . . . . . . . . . 10 . . . . . . . Recycling Units 22 | . 1 . . . 1 . 4 1 7 . . . . . 3 . . . . . . . . . . 3 . . . . . . . . . . 2 . . Scanalyzers 5 | . . . . . . . . . . . . . . . . . . . . . . . . . . . . . . . . 4 . 1 . . . . . Garrison Access 15 | . . . . . 1 . . . 3 . . . . . 4 . . . 1 . 1 . . . . . . . . . . 3 . . 2 . . . . Terminal Hacks 81 | . 2 1 2 . . 2 2 3 3 8 1 . . . 9 7 . . . 1 2 3 . 8 . . . . 17 . 4 1 . 1 2 1 1 . . Record 25 | . . . 1 . . . . . . 8 1 . . . . . . . . . . 2 . 8 . . . . 5 . . . . . . . . . . Part Schematic 6 | . . . . . . . . . . . . . . . 2 . . . . . . . . . . . . . 4 . . . . . . . . . . Robot Analysis 5 | . 1 . . . . . . . . . . . . . . . . . . . . . . . . . . . 4 . . . . . . . . . . Prototype ID Bank 4 | . . . . . . . . . . . . . . . . . . . . . . . . . . . . . 4 . . . . . . . . . . Open Door 9 | . . . . . . . . 2 . . . . . . . 5 . . . . . 1 . . . . . . . . . . . . 1 . . . . Branch Access Points 4 | . . . . . . . 1 . 1 . . . . . . . . . . . 1 . . . . . . . . . 1 . . . . . . . . Emergency Access Points 3 | . . . . . . . . . . . . . . . 1 . . . . 1 . . . . . . . . . . . . . . . 1 . . . Terminal Index 1 | . . . . . . . . . . . . . . . . . . . . . . . . . . . . . . . 1 . . . . . . . . Alert Level 1 | . . . . . . . . . . . . . . . . . . . . . . . . . . . . . . . 1 . . . . . . . . Unreport Threat 7 | . . . . . . . 1 1 2 . . . . . . . . . . . 1 . . . . . . . . . . . . 1 1 . . . . Locate Traps 5 | . . . . . . . . . . . . . . . 2 1 . . . . . . . . . . . . . . 1 . . . . . 1 . . Security Status 1 | . . . . . . . . . . . . . . . 1 . . . . . . . . . . . . . . . . . . . . . . . . Recall Investigation 1 | . 1 . . . . . . . . . . . . . . . . . . . . . . . . . . . . . . . . . . . . . . Hauler Manifests 2 | . . . . . . . . . . . . . . . 2 . . . . . . . . . . . . . . . . . . . . . . . . Zone Layout 4 | . . 1 . . . . . . . . . . . . 1 1 . . . . . . . . . . . . . . . 1 . . . . . . . Garrison Registry 1 | . . . . . . 1 . . . . . . . . . . . . . . . . . . . . . . . . . . . . . . . . . Patrol Navigation 1 | . . . . . . 1 . . . . . . . . . . . . . . . . . . . . . . . . . . . . . . . . . EX-Prototype ID Bank 1 | . . . 1 . . . . . . . . . . . . . . . . . . . . . . . . . . . . . . . . . . . . Fabricator Hacks 5 | . . . . . . . . . . . . . . . . . . . . . . . . . . 4 . . . . 1 . . . . . . . . Network Status 1 | . . . . . . . . . . . . . . . . . . . . . . . . . . . . . . . 1 . . . . . . . . Load Schematic 2 | . . . . . . . . . . . . . . . . . . . . . . . . . . 2 . . . . . . . . . . . . . Build 2 | . . . . . . . . . . . . . . . . . . . . . . . . . . 2 . . . . . . . . . . . . . Repair Station Hacks 5 | . . . . . . . 2 . . . . . . . . . . . . . . . . . . . . . . . . 3 . . . . . . . Scan Component 3 | . . . . . . . 1 . . . . . . . . . . . . . . . . . . . . . . . . 2 . . . . . . . Repair 2 | . . . . . . . 1 . . . . . . . . . . . . . . . . . . . . . . . . 1 . . . . . . . Recycling Unit Hacks 3 | . . . . . 1 . . . 1 . . . . . . . . . . . . . . . . 1 . . . . . . . . . . . . . Retrieve Components 3 | . . . . . 1 . . . 1 . . . . . . . . . . . . . . . . 1 . . . . . . . . . . . . . Scanalyzer 1 | . . . . . . . . . . . . . . . . . . . . . . . . . . . . . . . . 1 . . . . . . . Insert Component 1 | . . . . . . . . . . . . . . . . . . . . . . . . . . . . . . . . 1 . . . . . . . Garrison Access Hacks 7 | . . . . . 1 . . . 2 . . . . . 1 . . . 1 . . . . . . . . . . . . 1 . . 1 . . . . Unlock Access 3 | . . . . . 1 . . . . . . . . . . . . . 1 . . . . . . . . . . . . . . . 1 . . . . Seal Access 4 | . . . . . . . . . 2 . . . . . 1 . . . . . . . . . . . . . . . . 1 . . . . . . . Unauthorized Hacks 12 | . 1 . . . . . 1 2 3 . . . . . 1 . . . . . . . . . . . . . . . 1 2 . 1 . . . . . Terminals 1 | . . . . . . . 1 . . . . . . . . . . . . . . . . . . . . . . . . . . . . . . . . Assimilate 1 | . . . . . . . 1 . . . . . . . . . . . . . . . . . . . . . . . . . . . . . . . . Fabricators 1 | . . . . . . . . . . . . . . . . . . . . . . . . . . . . . . . 1 . . . . . . . . Haulers 1 | . . . . . . . . . . . . . . . . . . . . . . . . . . . . . . . 1 . . . . . . . . Repair Stations 2 | . . . . . . . . 1 . . . . . . . . . . . . . . . . . . . . . . . 1 . . . . . . . Mechanics 2 | . . . . . . . . 1 . . . . . . . . . . . . . . . . . . . . . . . 1 . . . . . . . Recycling Units 6 | . 1 . . . . . . 1 3 . . . . . 1 . . . . . . . . . . . . . . . . . . . . . . . . Reject 2 | . . . . . . . . . 1 . . . . . 1 . . . . . . . . . . . . . . . . . . . . . . . . Recyclers 1 | . . . . . . . . . 1 . . . . . . . . . . . . . . . . . . . . . . . . . . . . . . Tunnel 3 | . 1 . . . . . . 1 1 . . . . . . . . . . . . . . . . . . . . . . . . . . . . . . Scanalyzers 2 | . . . . . . . . . . . . . . . . . . . . . . . . . . . . . . . . 1 . 1 . . . . . Researchers 2 | . . . . . . . . . . . . . . . . . . . . . . . . . . . . . . . . 1 . 1 . . . . . Garrison Access . | . . . . . . . . . . . . . . . . . . . . . . . . . . . . . . . . . . . . . . . . Data Cores Recovered . | . . . . . . . . . . . . . . . . . . . . . . . . . . . . . . . . . . . . . . . . Used . | . . . . . . . . . . . . . . . . . . . . . . . . . . . . . . . . . . . . . . . . Hacking Detections 78 | . 3 1 . . 1 4 5 3 8 . . . . . 7 7 1 . 6 . 3 . . . . 3 . . . . 6 8 . 3 3 1 5 . . Full Trace Events 6 | . . . . . . . 1 . 1 . . . . . . 1 . . . . . . . . . 2 . . . . . . . . 1 . . . . Feedback Events . | . . . . . . . . . . . . . . . . . . . . . . . . . . . . . . . . . . . . . . . . Feedback Blocked . | . . . . . . . . . . . . . . . . . . . . . . . . . . . . . . . . . . . . . . . . Robot Schematics Acquired 6 | . . . . . . . . . . . . 4 . . . . . . . . . . . . . . . . . . . . . 2 . . . . . Robots Built . | . . . . . . . . . . . . . . . . . . . . . . . . . . . . . . . . . . . . . . . . Authchips . | . . . . . . . . . . . . . . . . . . . . . . . . . . . . . . . . . . . . . . . . Time . | . . . . . . . . . . . . . . . . . . . . . . . . . . . . . . . . . . . . . . . . Total Robot Build Rating . | . . . . . . . . . . . . . . . . . . . . . . . . . . . . . . . . . . . . . . . . Part Schematics Acquired 23 | . . . . . . . . . . . . 13 . . 2 . . . . . . . . . . . . . 4 . . . . 4 . . . . . Parts Built 3 | . . . . . . . . . . . . . . . . . . . . . . . . . . 3 . . . . . . . . . . . . . Authchips . | . . . . . . . . . . . . . . . . . . . . . . . . . . . . . . . . . . . . . . . . Time 105 | . . . . . . . . . . . . . . . . . . . . . . . . . . 105 . . . . . . . . . . . . . Total Part Build Rating 17 | . . . . . . . . . . . . . . . . . . . . . . . . . . 17 . . . . . . . . . . . . . Parts Repaired 2 | . . . . . . . 1 . . . . . . . . . . . . . . . . . . . . . . . . 1 . . . . . . . Time 192 | . . . . . . . 56 . . . . . . . . . . . . . . . . . . . . . . . . 136 . . . . . . . Parts Recycled . | . . . . . . . . . . . . . . . . . . . . . . . . . . . . . . . . . . . . . . . . Recycled Matter . | . . . . . . . . . . . . . . . . . . . . . . . . . . . . . . . . . . . . . . . . Retrieved Matter . | . . . . . . . . . . . . . . . . . . . . . . . . . . . . . . . . . . . . . . . . Retrieved Components 15 | . . . . . 3 . . . 10 . . . . . . . . . . . . . . . . 2 . . . . . . . . . . . . . Parts Scanalyzed . | . . . . . . . . . . . . . . . . . . . . . . . . . . . . . . . . . . . . . . . . Part Schematics Acquired . | . . . . . . . . . . . . . . . . . . . . . . . . . . . . . . . . . . . . . . . . Parts Damaged . | . . . . . . . . . . . . . . . . . . . . . . . . . . . . . . . . . . . . . . . . Bothacking | -11 -10 -10 -10 -9 -8 -8 -8 -8 -7 -7 -7 -7 -7 -6 -6 -6 -6 -6 -6 -6 -5 -5 -5 -5 -4 -4 -4 -4 -4 -3 -3 -3 -2 -2 -2 -2 -1 -1 -1 ------------ Run | Jun Mat Min Exi Min Mat Gar Mat Sto Fac Low Low Zio Dee Pro Fac Ext Cet Arc Hub Gar Fac Upp Upp War Pro Fac Upp Upp Zhi Pro Res Tes Res Qua Sec Gar Acc Com Ac0 Used RIF Installer . | . . . . . . . . . . . . . . . . . . . . . . . . . . . . . . . . . . . . . . . . Robots Hacked 2 | . . . . . . . . . . . . . . . . 1 1 . . . . . . . . . . . . . . . . . . . . . . Non-combat . | . . . . . . . . . . . . . . . . . . . . . . . . . . . . . . . . . . . . . . . . Combat 1 | . . . . . . . . . . . . . . . . . 1 . . . . . . . . . . . . . . . . . . . . . . Robot Hacks Applied 1 | . . . . . . . . . . . . . . . . . 1 . . . . . . . . . . . . . . . . . . . . . . parse_system 1 | . . . . . . . . . . . . . . . . . 1 . . . . . . . . . . . . . . . . . . . . . . Manual 1 | . . . . . . . . . . . . . . . . 1 . . . . . . . . . . . . . . . . . . . . . . . Relay Couplers Released 58 | . . . . . . 12 . . 4 . . . . . . . . . . 8 . . . . . . . . . . . . 6 . . 25 3 . . Machine Destruction 50 | . . . . . . 12 . . 4 . . . . . . . . . . 8 . . . . . . . . . . . . 2 . . 21 3 . . Programmers 8 | . . . . . . . . . . . . . . . . . . . . . . . . . . . . . . . . . 4 . . 4 . . . Fabnet Peak Effective % . | . . . . . . . . . . . . . . . . . . . . . . . . . . . . . . . . . . . . . . . . Robots Rewired 25 | . . . . . . . . . . . . . . . . 16 . . . 6 . . . . 1 . . . . 2 . . . . . . . . . Allies Hacked 1 | . . . . . . . . . . . . . . . . . . . . . 1 . . . . . . . . . . . . . . . . . . Hacks Repelled . | . . . . . . . . . . . . . . . . . . . . . . . . . . . . . . . . . . . . . . . . Allies | -11 -10 -10 -10 -9 -8 -8 -8 -8 -7 -7 -7 -7 -7 -6 -6 -6 -6 -6 -6 -6 -5 -5 -5 -5 -4 -4 -4 -4 -4 -3 -3 -3 -2 -2 -2 -2 -1 -1 -1 -------- Run | Jun Mat Min Exi Min Mat Gar Mat Sto Fac Low Low Zio Dee Pro Fac Ext Cet Arc Hub Gar Fac Upp Upp War Pro Fac Upp Upp Zhi Pro Res Tes Res Qua Sec Gar Acc Com Ac0 Total Allies 61 | . . . . . . . . . 15 . . 2 . . . 28 5 . . 8 . . . . 1 . . . . 2 . . . . . . . . . Largest Group 18 | . . . . . . . . . 11 2 . 2 2 . . 18 17 10 6 6 2 . . . 1 . . . . 2 2 2 . . . . . . . Highest-Rated Group 855 | . . . . . . . . . 324 49 . 192 192 . . 695 855 744 504 296 89 . . . 47 . . . . 94 94 94 . . . . . . . Highest-Rated Ally 159 | . . . . . . . . . 31 31 . 96 96 . . 159 159 152 96 62 51 . . . 47 . . . . 47 47 47 . . . . . . . Warlord Squad Rendezvous 1 | . . . . . . . . . . . . . . . . . . . . . 1 . . . . . . . . . . . . . . . . . . Ghost 1 | . . . . . . . . . . . . . . . . . . . . . 1 . . . . . . . . . . . . . . . . . . Total Orders 30 | . . . . . . . . . . . . . . . . . 4 2 6 . . . . . . . . . . . . . . . . . 2 16 . STAY 18 | . . . . . . . . . . . . . . . . . 2 1 4 . . . . . . . . . . . . . . . . . . 11 . FOLLOW 6 | . . . . . . . . . . . . . . . . . 2 1 2 . . . . . . . . . . . . . . . . . 1 . . EXPLORE 1 | . . . . . . . . . . . . . . . . . . . . . . . . . . . . . . . . . . . . . 1 . . RETURN 5 | . . . . . . . . . . . . . . . . . . . . . . . . . . . . . . . . . . . . . . 5 . Ally Attacks 444 | . . . . . . . . . 35 . . . 60 . . 172 70 17 19 35 2 . . . 2 . . . . . 28 4 . . . . . . . Total Damage 10575 | . . . . . . . . . 551 . . . 1474 . . 4180 1238 466 430 1277 36 . . . 82 . . . . . 694 147 . . . . . . . Kills 85 | . . . . . . . . . 6 . . . 11 . . 31 12 4 5 9 1 . . . . . . . . . 5 1 . . . . . . . Allies Corrupted 4 | . . . . . . . . . . . . . . . . 1 2 . . . 1 . . . . . . . . . . . . . . . . . . Allies Melted 2 | . . . . . . . . . . . . . . . . . . . . . . . . . . . . . . . . . 2 . . . . . . Intel | -11 -10 -10 -10 -9 -8 -8 -8 -8 -7 -7 -7 -7 -7 -6 -6 -6 -6 -6 -6 -6 -5 -5 -5 -5 -4 -4 -4 -4 -4 -3 -3 -3 -2 -2 -2 -2 -1 -1 -1 ------- Run | Jun Mat Min Exi Min Mat Gar Mat Sto Fac Low Low Zio Dee Pro Fac Ext Cet Arc Hub Gar Fac Upp Upp War Pro Fac Upp Upp Zhi Pro Res Tes Res Qua Sec Gar Acc Com Ac0 Robot Analysis Total 5 | . 1 . . . . . . . . . . . . . . . . . . . . . . . . . . . 4 . . . . . . . . . . Derelict Logs Recovered 7 | . . . . 1 . . . . . 1 1 . . 1 . . . . . . . . 2 . . . 1 . . . . . . . . . . . . Drone Launches 9 | . . . . . . . . . . . . . . . . . . . . . . . . . . . . . . . . . . . . . 2 7 . Drone Recoveries 5 | . . . . . . . . . . . . . . . . . . . . . . . . . . . . . . . . . . . . . . 5 . Exploration | -11 -10 -10 -10 -9 -8 -8 -8 -8 -7 -7 -7 -7 -7 -6 -6 -6 -6 -6 -6 -6 -5 -5 -5 -5 -4 -4 -4 -4 -4 -3 -3 -3 -2 -2 -2 -2 -1 -1 -1 ------------- Run | Jun Mat Min Exi Min Mat Gar Mat Sto Fac Low Low Zio Dee Pro Fac Ext Cet Arc Hub Gar Fac Upp Upp War Pro Fac Upp Upp Zhi Pro Res Tes Res Qua Sec Gar Acc Com Ac0 Turns Passed 66076 | 95 1079 370 884 128 60 2011 1081 1205 1638 1901 1294 3362 5626 1829 1007 2100 449 843 862 1961 718 1331 1564 1915 1345 816 844 511 722 833 452 2003 891 1760 1375 1714 7960 9261 276 Spaces Moved 25850 | 40 526 143 365 53 33 737 377 475 578 701 447 1223 2030 590 405 805 191 296 346 582 243 508 494 593 401 414 457 302 298 353 226 753 347 575 627 904 3284 4018 110 Core 471 | . . . . . . . . . . . . . . . . . . . . . . . . . . . . . . . . . . . . . 458 . 13 Treads 21906 | 40 526 143 365 53 33 28 46 475 578 701 447 1223 1635 . . . 168 296 346 582 243 508 494 593 401 414 457 302 298 353 226 753 347 575 584 904 2826 3846 97 Legs 3258 | . . . . . . 709 331 . . . . . 395 590 405 805 23 . . . . . . . . . . . . . . . . . . . . . . Wheels . | . . . . . . . . . . . . . . . . . . . . . . . . . . . . . . . . . . . . . . . . Hover . | . . . . . . . . . . . . . . . . . . . . . . . . . . . . . . . . . . . . . . . . Flight . | . . . . . . . . . . . . . . . . . . . . . . . . . . . . . . . . . . . . . . . . Fastest Speed 50 | 160 160 160 240 240 160 160 162 162 242 242 245 242 185 210 210 210 160 160 240 160 240 240 160 240 240 155 155 155 155 155 155 155 158 163 163 163 160 160 50 Average Speed 199 | 160 160 210 240 240 160 205 184 195 242 243 245 244 236 213 210 210 201 184 240 235 240 240 235 240 240 157 155 155 155 155 155 171 236 231 163 163 187 160 147 Slowest Speed 350 | 160 160 240 240 240 160 330 190 242 242 246 245 245 245 270 210 210 240 240 240 240 240 240 240 240 240 160 240 155 160 155 155 240 241 250 163 163 350 160 160 Overloaded Moves . | . . . . . . . . . . . . . . . . . . . . . . . . . . . . . . . . . . . . . . . . Propulsion Burnouts . | . . . . . . . . . . . . . . . . . . . . . . . . . . . . . . . . . . . . . . . . Robots Hopped . | . . . . . . . . . . . . . . . . . . . . . . . . . . . . . . . . . . . . . . . . Cave-ins Triggered . | . . . . . . . . . . . . . . . . . . . . . . . . . . . . . . . . . . . . . . . . Teleports 1 | . . . . . . . . . . . . . . . . . . . . . . . . . . . . . . . . . . . . . . . 1 Spacefolds 2 | . . . . . . . . . . . . . . . . . . . . . . . . . . . . . . . . . . . 2 . . . . Microwarps 18 | . . . . . . . . . . . . . . . . . . . . . . . . . . . . . . . . . . . 2 . . 16 . Exploration Rate (%) 52 | 4 68 36 70 20 3 70 40 65 22 77 60 86 89 60 16 86 64 98 25 66 12 61 59 81 51 10 57 54 60 55 12 93 13 67 33 83 78 77 15 Regions Visited 39 Branch Regions 26 Pre-discovered Areas 11 | . 1 1 1 . . . . 2 1 1 . . . . . . . . . . . . 1 . . . . . 3 . . . . . . . . . . Known Exits Taken 11 | . . . . . 1 . 1 . 1 . . . . 1 1 . . . 1 . 1 . . . . 1 1 . . . 1 . . . 1 . . . . Unknown Exits Taken 25 | 1 1 1 1 1 . . . 1 . 1 1 1 1 . . 1 1 1 . . . 1 1 1 1 . . 1 1 1 . 1 1 1 . . 1 1 . Scrap Searched 21 | . . 1 . . . . . . . 3 1 2 . 3 . . . . . . . 1 3 . 2 . 4 . . 1 . . . . . . . . . Spaces Dug 1685 | . 1 2 . . . . 9 4 17 2 2 . 2 28 4 2 . . 3 5 5 10 21 26 14 10 15 12 . 19 11 49 18 27 29 9 309 1020 . Terrain Destroyed 4012 | . 1 2 . . . . 22 28 27 56 60 . 22 160 15 17 38 7 153 103 25 26 35 32 24 76 31 15 . 45 18 75 25 53 47 120 750 1570 334 Melee 3 | . . . . . . . . . . . . . . . . . . . . . . . . . . . . . . . . 2 . . 1 . . . . Projectile 881 | . 1 2 . . . . 17 28 27 3 12 . 5 55 15 17 . 7 7 26 25 26 35 32 24 19 31 15 . 38 18 73 25 53 46 12 61 113 13 AOE 3128 | . . . . . . . 5 . . 53 48 . 17 105 . . 38 . 146 77 . . . . . 57 . . . 7 . . . . . 108 689 1457 321 Terrain Rammed . | . . . . . . . . . . . . . . . . . . . . . . . . . . . . . . . . . . . . . . . . Walls Destroyed . | . . . . . . . . . . . . . . . . . . . . . . . . . . . . . . . . . . . . . . . . Machines Disabled . | . . . . . . . . . . . . . . . . . . . . . . . . . . . . . . . . . . . . . . . . Actions | -11 -10 -10 -10 -9 -8 -8 -8 -8 -7 -7 -7 -7 -7 -6 -6 -6 -6 -6 -6 -6 -5 -5 -5 -5 -4 -4 -4 -4 -4 -3 -3 -3 -2 -2 -2 -2 -1 -1 -1 --------- Run | Jun Mat Min Exi Min Mat Gar Mat Sto Fac Low Low Zio Dee Pro Fac Ext Cet Arc Hub Gar Fac Upp Upp War Pro Fac Upp Upp Zhi Pro Res Tes Res Qua Sec Gar Acc Com Ac0 Total 38398 | 57 665 174 370 53 41 1016 701 625 721 819 552 1599 2770 1038 514 1157 258 554 361 991 312 583 836 1012 692 536 591 345 564 631 332 1416 419 904 967 1103 5040 6865 214 Wait 7250 | 1 44 3 2 . . 49 214 27 32 38 22 339 550 295 40 142 13 186 5 135 14 37 256 322 200 56 73 15 231 137 17 278 22 88 71 53 1288 1945 10 Move 25616 | 39 525 142 364 52 32 734 376 474 577 700 446 1222 2029 589 404 804 190 295 346 581 243 507 493 592 400 413 456 301 297 352 225 753 346 574 587 903 3283 3861 109 Hop . | . . . . . . . . . . . . . . . . . . . . . . . . . . . . . . . . . . . . . . . . Pick Up 410 | . 15 3 . . 3 23 18 15 11 3 5 11 26 12 7 3 7 3 . 10 3 2 19 3 9 10 4 1 3 23 8 34 3 8 28 10 28 37 2 Fast Attach 294 | 3 2 . . . . 12 8 6 5 3 2 3 18 11 4 4 6 8 1 9 4 2 9 11 4 2 1 . 8 8 7 11 4 27 23 8 25 30 5 Attach 251 | . 2 . . . 4 12 1 3 3 . 4 1 14 4 3 2 8 1 . 9 . . . . 3 1 . . 2 . 7 16 1 13 25 12 15 75 10 Detach 271 | . 1 . . . . 6 . 1 2 . . . 12 13 3 2 4 4 . 10 5 2 11 9 8 3 . . 11 10 7 15 3 21 18 2 15 64 9 Swap 382 | 3 8 7 . . . 19 18 13 16 20 23 6 18 12 4 3 2 3 . 7 3 . 3 2 3 5 3 1 . 7 3 27 2 22 34 5 31 36 13 Drop 576 | 4 10 1 . . 2 19 24 17 15 6 5 13 46 21 9 8 12 13 . 15 5 4 8 14 12 6 5 1 9 10 12 43 8 28 39 18 49 59 6 Fire 2995 | 7 52 17 4 . . 122 38 63 53 49 45 4 55 81 39 49 16 41 9 108 32 27 37 59 46 39 48 26 2 67 46 230 29 119 139 91 306 750 50 Melee 25 | . . . . . . . . . . . . . 2 . . 1 . . . 4 . . . . 5 . 1 . 1 . . 3 1 4 2 1 . . . Ram . | . . . . . . . . . . . . . . . . . . . . . . . . . . . . . . . . . . . . . . . . Kick 6 | . . . . . . . 4 . . . . . . . 1 1 . . . . . . . . . . . . . . . . . . . . . . . Crush 39 | . 6 1 . 1 . . . 6 7 . . . . . . . . . . . 3 1 . . . 1 . . . . . 6 . . 1 . . 6 . Escape Stasis 37 | . . . . . . 20 . . . . . . . . . 5 . . . 10 . . . . . . . . . . . . . . . . . 2 . Rewire 246 | . . . . . . . . . . . . . . . . 133 . . . 93 . 1 . . 2 . . . . 17 . . . . . . . . . Trap . | . . . . . . . . . . . . . . . . . . . . . . . . . . . . . . . . . . . . . . . . Miscellaneous . | . . . . . . . . . . . . . . . . . . . . . . . . . . . . . . . . . . . . . . . . Route ------- -11/Junkyard -10/Materials (discovered 3 exits: [*Mat x2] / *Min) -10/Mines (discovered 3 exits: [*Mat x2] / *Exi) -10/Exiles -9/Mines -8/Materials -8/Garrison (discovered 3 exits: *Mat x3) -8/Materials (discovered 3 exits: *Fac x2 / *Sto) -8/Storage (discovered 2 exits: *Fac / Rec) -7/Factory (discovered 3 exits: *Fac / *Low x2) -7/Lower Caves -7/Lower Caves (discovered 2 exits: *Fac / *Zio) -7/Zion (discovered 2 exits: [*Dee] / [*Pro]) -7/Deep Caves -6/Proximity Caves -6/Factory (discovered 4 exits: *Fac x2 / [*Low] / *Ext) -6/Extension (discovered 2 exits: *Fac / *Cet) -6/Cetus (discovered 2 exits: *Fac / [*Arc]) -6/Archives (discovered 3 exits: *Fac / *Hub x2) -6/Hub_04(d) -6/Garrison (discovered 2 exits: *Fac x2) -5/Factory (discovered 2 exits: *Upp x2) -5/Upper Caves -5/Upper Caves -5/Warlord -4/Proximity Caves -4/Factory -4/Upper Caves -4/Upper Caves -4/Zhirov -3/Proximity Caves -3/Research (discovered 3 exits: Arm / *Tes x2) -3/Testing -2/Research -2/Quarantine -2/Section 7 (discovered 2 exits: *Acc / Gar) -2/Garrison (discovered 3 exits: *Acc x3) -1/Access (discovered 2 exits: [*Sur] / [*Com]) -1/Command (discovered 3 exits: [*Sur x2] / [*Ac0]) -1/Access_0 Near Former Tau Ceti IV History --------- Turn | Location | Event 10 | -11/Junkyard | Discovered new exit (range 3) 96 | -11/Junkyard | Entered Materials 193 | -10/Materials | Discovered new exit (range 13) 311 | -10/Materials | Build established: Mutant 387 | -10/Materials | Discovered new exit (range 5) 714 | -10/Materials | Discovered new exit (range 16) 1175 | -10/Materials | Entered Mines 1243 | -10/Mines | Discovered new exit (range 15) 1458 | -10/Mines | Discovered new exit (range 8) 1535 | -10/Mines | Deemed a non-threat by the Exiles lab entrance 1535 | -10/Mines | Discovered new exit (range 5) 1545 | -10/Mines | Entered Exiles 1605 | -10/Exiles | Met 8R-AWN 1646 | -10/Exiles | Met EX-HEX 1757 | -10/Exiles | Met EX-DEC 1807 | -10/Exiles | Learned location of Zion (-7) 1999 | -10/Exiles | Met EX-BIN 2033 | -10/Exiles | Aligned with FarCom system 2035 | -10/Exiles | Given EX-Vault access code 2093 | -10/Exiles | Opened EX-Vault 2148 | -10/Exiles | Warned to stay clear of 0b10 Research branches 2301 | -10/Exiles | Discovered new exit (range 11) 2380 | -10/Exiles | Attacked by the Exiles 2429 | -10/Exiles | Entered Mines 2444 | -9/Mines | Met a Derelict bent on vengeance 2528 | -9/Mines | Discovered new exit (range 3) 2557 | -9/Mines | Entered Materials 2557 | -8/Materials | Evolved 4 slots: Propulsion x2, Utility x2 2572 | -8/Materials | Identified exit to Garrison 2617 | -8/Materials | Entered Garrison 2662 | -8/Garrison | Triggered checkpoint 2765 | -8/Garrison | Lost 7 parts (2p4n1w) 2985 | -8/Garrison | Garrison Relay disabled 3043 | -8/Garrison | Build established: Scavenger-Mutant 3327 | -8/Garrison | Triggered checkpoint 3505 | -8/Garrison | Core integrity fell below 50% 3669 | -8/Garrison | Discovered new exit (range 12) 3745 | -8/Garrison | Triggered checkpoint 3792 | -8/Garrison | Discovered new exit (range 83) 3792 | -8/Garrison | Discovered new exit (range 56) 3792 | -8/Garrison | Discovered new exit (range 18) 3814 | -8/Garrison | Garrison Relay disabled 4121 | -8/Garrison | Attempted to access garrison exit controls, blocked by remote lockdown 4344 | -8/Garrison | Attempted to access garrison exit controls, blocked by remote lockdown 4432 | -8/Garrison | Triggered checkpoint 4536 | -8/Garrison | Garrison Relay disabled 4628 | -8/Garrison | Entered Materials 5042 | -8/Materials | Discovered new exit (range 6) 5340 | -8/Materials | Repaired Hyp. Gauss Cannon 5394 | -8/Materials | Discovered new exit (range 14) 5504 | -8/Materials | Identified exit to Storage 5709 | -8/Materials | Entered Storage 5710 | -8/Storage | Identified exit to Recycling 6046 | -8/Storage | Discovered new exit (range 16) 6192 | -8/Storage | Learned location of Armory (-3) 6914 | -8/Storage | Entered Factory 6914 | -7/Factory | Evolved 2 slots: Power x1, Utility x1 7401 | -7/Factory | Found Prototype Launcher 7401 | -7/Factory | Identified Rocket Array 7994 | -7/Factory | Identified exit to Lower Caves 8312 | -7/Factory | Allied Derelicts emerged from ambush trap array 8456 | -7/Factory | Discovered new exit (range 16) 8552 | -7/Factory | Entered Lower Caves 8552 | -7/Lower Caves | Accompanied by 2 allies 8572 | -7/Lower Caves | Met a Warlord Commander 8573 | -7/Lower Caves | Learned location of Warlord (-5) 8583 | -7/Lower Caves | Found Encrypted Comm Array 9179 | -7/Lower Caves | Encountered a Warlord checkpoint 9637 | -7/Lower Caves | Learned location of 1 exit from Proximity Caves 9797 | -7/Lower Caves | Learned Extension garrison access intel 9797 | -7/Lower Caves | Learned Research terminal intel 9797 | -7/Lower Caves | Learned Extension security intel 9797 | -7/Lower Caves | Learned Armory trap positions 9797 | -7/Lower Caves | Learned Factory trap positions 9797 | -7/Lower Caves | Learned 8 Research zone layouts 10077 | -7/Lower Caves | Attracted the attention of an 0b10 base 10127 | -7/Lower Caves | Discovered new exit (range 5) 10453 | -7/Lower Caves | Entered another Lower Caves area 10500 | -7/Lower Caves | Acquired the password to a Derelict Tinkerer's latest research 10563 | -7/Lower Caves | Discovered new exit (range 10) 10712 | -7/Lower Caves | Caught by Unaware searching for contraband prototypes 10754 | -7/Lower Caves | Caught by Unaware searching for contraband prototypes 11060 | -7/Lower Caves | Encountered a Warlord checkpoint 11440 | -7/Lower Caves | Discovered new exit (range 6) 11569 | -7/Lower Caves | Ambushed by research squad 11747 | -7/Lower Caves | Entered Zion 11864 | -7/Zion | Discovered new exit (range 10) 11954 | -7/Zion | Given the Hacking Drone Bay 12011 | -7/Zion | System corruption cleaned by Quarantine Array 12513 | -7/Zion | Given A8's code to call for help 13734 | -7/Zion | Found Prototype Processor 13737 | -7/Zion | Found Prototype Processor 13741 | -7/Zion | Found Prototype Processor 13750 | -7/Zion | Found Prototype Processor 13780 | -7/Zion | Identified Exp. Core Analyzer 13832 | -7/Zion | Identified Exp. Armor Integrity Analyzer 14043 | -7/Zion | Found Prototype Processor 14062 | -7/Zion | Identified Spectral Analyzer 14116 | -7/Zion | Identified Exp. Targeting Computer (x2) 14427 | -7/Zion | Found CR-A16's Pointy Stick 15003 | -7/Zion | Enhanced Grunt warped into view, answering call for help 15029 | -7/Zion | Enhanced Grunt warped into view, answering call for help 15091 | -7/Zion | Discovered new exit (range 3) 15091 | -7/Zion | Saw the warning signs outside the Deep Caves entrance 15109 | -7/Zion | Entered Deep Caves 15109 | -7/Deep Caves | Accompanied by 2 allies 15376 | -7/Deep Caves | Attacked by Z-Imprinter 15390 | -7/Deep Caves | Allies destroyed Z-Imprinter 15526 | -7/Deep Caves | Found Prototype Protection 15579 | -7/Deep Caves | Z-Facility disabled 15961 | -7/Deep Caves | Found Prototype Protection 15961 | -7/Deep Caves | Identified Zio. Heavy Carapace 16146 | -7/Deep Caves | Found Zio. Heavy Carapace 16652 | -7/Deep Caves | Discovered new exit (range 6) 17238 | -7/Deep Caves | Identified Zio. Weapon Casing 17256 | -7/Deep Caves | Found Zio. Weapon Casing 17262 | -7/Deep Caves | Found Zio. Weapon Casing 17584 | -7/Deep Caves | Destroyed as-77286 17789 | -7/Deep Caves | Spotted as-37071 17792 | -7/Deep Caves | Destroyed as-37071 18601 | -7/Deep Caves | Triggered Deep Caves wall 18601 | -7/Deep Caves | Spotted AS-49813 18601 | -7/Deep Caves | Spotted AS-03021 18603 | -7/Deep Caves | Destroyed AS-03021 18607 | -7/Deep Caves | Destroyed AS-49813 18613 | -7/Deep Caves | Core integrity fell below 50% 18635 | -7/Deep Caves | Destroyed 35 combat bots 18638 | -7/Deep Caves | Lost 4 parts (1p3u) 18667 | -7/Deep Caves | Found Firepult 19331 | -7/Deep Caves | Exposed GOLEM chamber 19336 | -7/Deep Caves | Found GOLEM Unit 19631 | -7/Deep Caves | Build established: Mutant 19871 | -7/Deep Caves | Found GOLEM Unit 19956 | -7/Deep Caves | Build established: Golem 20044 | -7/Deep Caves | Found Surveybot 24 Scanner 20048 | -7/Deep Caves | Found Surveybot 24 Chip 20173 | -7/Deep Caves | Found Prototype Device 20173 | -7/Deep Caves | Identified Exp. Thermal Shield 20735 | -7/Deep Caves | Entered Proximity Caves 20736 | -6/Proximity Caves | Identified exit to Factory 20738 | -6/Proximity Caves | Spotter reported a threat 20996 | -6/Proximity Caves | Learned location of 1 exit from Factory 21320 | -6/Proximity Caves | Unaware initiated a cargo recovery operation 21369 | -6/Proximity Caves | Received a Behemoth hack from an annoying Tinkerer 21396 | -6/Proximity Caves | Found Alien Artifact 21396 | -6/Proximity Caves | Identified Dimensional Node Initializer 21396 | -6/Proximity Caves | Initialized slip node 21442 | -6/Proximity Caves | Attracted the attention of an 0b10 checkpoint 21548 | -6/Proximity Caves | Core integrity fell below 20% 21602 | -6/Proximity Caves | Encountered a Derelict guarding a broken Freighter 21716 | -6/Proximity Caves | Found Prototype Launcher 21716 | -6/Proximity Caves | Identified Tesla Bomb Launcher 21721 | -6/Proximity Caves | Found Tesla Bomb Launcher 21725 | -6/Proximity Caves | Found Prototype Device 21725 | -6/Proximity Caves | Identified Exp. Shield Generator 21752 | -6/Proximity Caves | Found Exp. Shield Generator 21756 | -6/Proximity Caves | Found Exp. Shield Generator 22564 | -6/Proximity Caves | Entered Factory 22564 | -6/Factory | Evolved 2 slots: Utility x2 22565 | -6/Factory | Identified exit to Extension 22566 | -6/Factory | Identified exit to Factory 22567 | -6/Factory | Loaded intel: 79 trap records 23104 | -6/Factory | Discovered new exit (range 4) 23508 | -6/Factory | Found Launcher Loader 23533 | -6/Factory | Discovered exit to Factory (range 11) 23571 | -6/Factory | Entered Extension 23730 | -6/Extension | Rescued a captive Derelict 23731 | -6/Extension | Rescued a captive Derelict 23787 | -6/Extension | Rescued a captive Derelict 23787 | -6/Extension | Rescued a captive Derelict 23911 | -6/Extension | Rescued A7 24587 | -6/Extension | Build established: Commander-Golem 24734 | -6/Extension | Spotted B-75 Beast 24740 | -6/Extension | Befriended a Behemoth using the annoying Tinkerer's hack 24757 | -6/Extension | Destroyed B-75 Beast 24832 | -6/Extension | Rescued a captive Derelict 25058 | -6/Extension | Rescued a captive Derelict 25068 | -6/Extension | Rescued a captive Derelict 25436 | -6/Extension | Rescued a captive Derelict 25473 | -6/Extension | Rescued a captive Derelict 25474 | -6/Extension | Rescued a captive Derelict 25528 | -6/Extension | Discovered exit to Factory (range 10) 25530 | -6/Extension | Discovered new exit (range 6) 25671 | -6/Extension | First assault squad dispatched 25671 | -6/Extension | Entered Cetus 25671 | -6/Cetus | Accompanied by 17 allies (A7) 25676 | -6/Cetus | Acquired a Cetus Manufacturing Module code from A7 25706 | -6/Cetus | Spotted Cetus Guard 25706 | -6/Cetus | Spotted Cetus Guard 25709 | -6/Cetus | Spotted Cetus Guard 25711 | -6/Cetus | Spotted Cetus Guard 25717 | -6/Cetus | Allies destroyed Cetus Guard 25726 | -6/Cetus | Destroyed Cetus Guard 25728 | -6/Cetus | Destroyed Cetus Guard 25728 | -6/Cetus | System corruption reached 10% 25731 | -6/Cetus | Destroyed Cetus Guard 25800 | -6/Cetus | System corruption reached 30% 25867 | -6/Cetus | Started Cetus Manufacturing Module 25884 | -6/Cetus | Escorted A7 to Cetus Mainframe 25892 | -6/Cetus | Manufactured an Enhanced Grunt 25911 | -6/Cetus | Discovered new exit (range 16) 25917 | -6/Cetus | Manufactured an Enhanced Grunt 25942 | -6/Cetus | Manufactured an Enhanced Grunt 25967 | -6/Cetus | Manufactured an Enhanced Grunt 25968 | -6/Cetus | Spotted Cetus Guard 25969 | -6/Cetus | Spotted Cetus Guard 25974 | -6/Cetus | Allies destroyed Cetus Guard 25974 | -6/Cetus | Spotted Cetus Guard 25977 | -6/Cetus | Destroyed Cetus Guard 25977 | -6/Cetus | Destroyed Cetus Guard 25977 | -6/Cetus | Spotted Cetus Guard 25979 | -6/Cetus | Destroyed Cetus Guard 25987 | -6/Cetus | Discovered exit to Factory (range 15) 25991 | -6/Cetus | Build established: Commander-Mutant 25992 | -6/Cetus | Manufactured an Enhanced Grunt 25995 | -6/Cetus | Met Revision 17 26120 | -6/Cetus | Entered Archives 26120 | -6/Archives | Accompanied by 10 allies (A7) 26125 | -6/Archives | Received a hacking code to weaken MAIN.C 26455 | -6/Archives | Discovered new exit (range 15) 26519 | -6/Archives | Discovered new exit (range 15) 26629 | -6/Archives | Build established: Commander-Golem 26737 | -6/Archives | Discovered exit to Factory (range 13) 26963 | -6/Archives | Entered Hub_04(d) 26963 | -6/Hub_04(d) | Accompanied by 6 allies 27595 | -6/Hub_04(d) | Network Hub disabled 27797 | -6/Hub_04(d) | Build established: Golem 27825 | -6/Hub_04(d) | Identified exit to Garrison 27825 | -6/Hub_04(d) | Entered Garrison 27955 | -6/Garrison | Destroyed 7 combat bots 28068 | -6/Garrison | Triggered checkpoint 28178 | -6/Garrison | Triggered checkpoint 28218 | -6/Garrison | Spotted B-75 Beast 28336 | -6/Garrison | Destroyed B-75 Beast 28669 | -6/Garrison | Destroyed 12 combat bots 28994 | -6/Garrison | Discovered exit to Factory (range 14) 29028 | -6/Garrison | Build established: Scavenger-Golem 29040 | -6/Garrison | Found embedded Infiltrators 29078 | -6/Garrison | Triggered checkpoint 29093 | -6/Garrison | Garrison Relay disabled 29324 | -6/Garrison | Triggered checkpoint 29356 | -6/Garrison | Garrison Relay disabled 29607 | -6/Garrison | Phase Generator disabled 29760 | -6/Garrison | Discovered exit to Factory (range 4) 29786 | -6/Garrison | Entered Factory 29786 | -5/Factory | Accompanied by 2 allies 29786 | -5/Factory | Evolved 2 slots: Utility x2 30043 | -5/Factory | Joined by Warlord Ghost squad 30061 | -5/Factory | Garrison activated, responded to threat 30236 | -5/Factory | Identified exit to Upper Caves 30386 | -5/Factory | First assault squad dispatched 30504 | -5/Factory | Entered Upper Caves 31707 | -5/Upper Caves | Discovered new exit (range 12) 31835 | -5/Upper Caves | Entered another Upper Caves area 32055 | -5/Upper Caves | Learned Factory trap positions 32764 | -5/Upper Caves | Discovered new exit (range 7) 32890 | -5/Upper Caves | Build established: Golem 33399 | -5/Upper Caves | Entered Warlord 33869 | -5/Warlord | Build established: Scavenger-Golem 34363 | -5/Warlord | Met Warlord 34388 | -5/Warlord | Warlord's base attacked by MAIN.C 34394 | -5/Warlord | Found Prototype Reactor 34394 | -5/Warlord | Identified Vortex Chain Reactor 34403 | -5/Warlord | Found Prototype Device 34403 | -5/Warlord | Identified Exp. Phase Shifter 34415 | -5/Warlord | Found Prototype Device 34415 | -5/Warlord | Identified System Purifier 34419 | -5/Warlord | Found Prototype Processor 34419 | -5/Warlord | Identified Exp. Target Analyzer 34680 | -5/Warlord | Build established: Scavenger-Mutant 34731 | -5/Warlord | Spotted Striker 34738 | -5/Warlord | Warlord forces counterattacked 34743 | -5/Warlord | Spotted Executioner 34811 | -5/Warlord | Spotted Executioner 34813 | -5/Warlord | Spotted Striker 34818 | -5/Warlord | Spotted Striker 34891 | -5/Warlord | Spotted Striker 34894 | -5/Warlord | Spotted Executioner 34895 | -5/Warlord | Spotted Executioner 34899 | -5/Warlord | Destroyed Striker 35012 | -5/Warlord | Build established: Mutant 35063 | -5/Warlord | Warlord base infiltrated, sounded retreat 35068 | -5/Warlord | Spotted B-86 Titan 35071 | -5/Warlord | Spotted Striker 35084 | -5/Warlord | Destroyed Striker 35149 | -5/Warlord | Found Prototype Device 35149 | -5/Warlord | Identified Exp. Shock Absorption System 35194 | -5/Warlord | Spotted Striker 35198 | -5/Warlord | Spotted Striker 35239 | -5/Warlord | Discovered new exit (range 15) 35312 | -5/Warlord | Spotted Striker 35314 | -5/Warlord | Entered Proximity Caves 35357 | -4/Proximity Caves | Attracted the attention of an 0b10 checkpoint 35694 | -4/Proximity Caves | Attracted the attention of an 0b10 outpost 35803 | -4/Proximity Caves | Destroyed 10 combat bots 36002 | -4/Proximity Caves | Discovered new exit (range 11) 36212 | -4/Proximity Caves | Spotted B-86 Titan 36269 | -4/Proximity Caves | Revealed the true nature of CR-A16's Pointy Stick 36272 | -4/Proximity Caves | Destroyed B-86 Titan 36566 | -4/Proximity Caves | Build established: Scavenger-Mutant 36659 | -4/Proximity Caves | Entered Factory 36659 | -4/Factory | Evolved 2 slots: Propulsion x2 36660 | -4/Factory | Loaded intel: 97 trap records 36662 | -4/Factory | Discovered new exit (range 15) 36792 | -4/Factory | Fabricated Adv. Transmission Jammer (x1) 37188 | -4/Factory | Found Quantum Capacitor 37306 | -4/Factory | Fabricated Adv. Signal Interpreter (x2) 37473 | -4/Factory | Identified exit to Upper Caves 37475 | -4/Factory | Entered Upper Caves 37494 | -4/Upper Caves | Build established: Mutant 37819 | -4/Upper Caves | Spotted B-86 Titan 37854 | -4/Upper Caves | Destroyed B-86 Titan 38034 | -4/Upper Caves | Identified exit to Upper Caves 38137 | -4/Upper Caves | Build established: Scavenger-Mutant 38319 | -4/Upper Caves | Entered another Upper Caves area 38398 | -4/Upper Caves | Attracted the attention of an 0b10 checkpoint 38631 | -4/Upper Caves | Build established: Mutant 38697 | -4/Upper Caves | Discovered new exit (range 9) 38830 | -4/Upper Caves | Entered Zhirov 38831 | -4/Zhirov | Discovered new exit (range 3) 38859 | -4/Zhirov | Met Zhirov 38887 | -4/Zhirov | Learned location of Quarantine (-2) 38887 | -4/Zhirov | Learned location of Testing (-3) 38887 | -4/Zhirov | Learned location of Command (-1) 38904 | -4/Zhirov | Zhirov requested help retrieving the SGEMP Prototype 38930 | -4/Zhirov | Found Alien Artifact 38930 | -4/Zhirov | Identified Integrated Reactor 38930 | -4/Zhirov | Installed Integrated Reactor, increased core energy generation (+10) 39034 | -4/Zhirov | Found Alien Artifact 39552 | -4/Zhirov | Entered Proximity Caves 39555 | -3/Proximity Caves | Spotter reported a threat 39556 | -3/Proximity Caves | Spotted B-86 Titan 39875 | -3/Proximity Caves | Discovered new exit (range 7) 40014 | -3/Proximity Caves | Attracted the attention of an 0b10 outpost 40084 | -3/Proximity Caves | Destroyed 14 combat bots 40385 | -3/Proximity Caves | Entered Research 40385 | -3/Research | Accompanied by 2 allies 40385 | -3/Research | Evolved 2 slots: Power x1, Utility x1 40387 | -3/Research | Loaded intel: 23 terminal locations 40435 | -3/Research | Identified exit to Armory 40435 | -3/Research | Identified exit to Testing 40837 | -3/Research | Entered Testing 40837 | -3/Testing | Accompanied by 2 allies 40875 | -3/Testing | P-80 Master assimilated allied Veteran 8a 40931 | -3/Testing | Identified Transdimensional Reconstructor 41125 | -3/Testing | First assault squad dispatched 41130 | -3/Testing | Build established: Scavenger-Mutant 41198 | -3/Testing | Destroyed 7 combat bots 41763 | -3/Testing | Found Prototype Protection 41763 | -3/Testing | Identified Hvy. Regenerative Plating 41766 | -3/Testing | Found Prototype Protection 41851 | -3/Testing | Found Prototype Energy Cannon 41857 | -3/Testing | Identified Imp. Potential Cannon 41962 | -3/Testing | Identified SHELL Armor 41964 | -3/Testing | Found Prototype Ballistic Cannon 42046 | -3/Testing | Build established: Mutant 42290 | -3/Testing | Repaired Broken Centrium Heavy Treads 42323 | -3/Testing | Identified Omega Cannon 42389 | -3/Testing | Spotted Striker 42390 | -3/Testing | Spotted Striker 42421 | -3/Testing | Destroyed Striker 42428 | -3/Testing | Destroyed Striker 42486 | -3/Testing | Destroyed 7 combat bots 42548 | -3/Testing | Found Prototype Processor 42562 | -3/Testing | Identified Exp. Targeting Computer 42700 | -3/Testing | Discovered new exit (range 13) 42724 | -3/Testing | System corruption reached 10% 42840 | -3/Testing | Entered Research 42840 | -2/Research | Warlord forces began assault on 0b10 42840 | -2/Research | Evolved 2 slots: Utility x2 42842 | -2/Research | Build established: Scavenger-Mutant 42865 | -2/Research | Distinguished unit "Cat Herders" dispatched to help 42935 | -2/Research | Met up with Warlord 42950 | -2/Research | Research machine network offline 43157 | -2/Research | Build established: Mutant 43589 | -2/Research | Borebot progress halted 43664 | -2/Research | Borebot progress halted 43684 | -2/Research | Spotted B-90 Cyclops 43705 | -2/Research | Discovered new exit (range 11) 43705 | -2/Research | Spotted B-90 Cyclops 43715 | -2/Research | Destroyed B-90 Cyclops 43731 | -2/Research | Entered Quarantine 43733 | -2/Quarantine | Spotted Alpha 7 43749 | -2/Quarantine | Found Alien Artifact 43749 | -2/Quarantine | Identified Core Reset Matrix 43749 | -2/Quarantine | Used Core Reset Matrix 43753 | -2/Quarantine | Detected hypermatrix surge 43753 | -2/Quarantine | Sensed 10 artifacts in vicinity 44423 | -2/Quarantine | Found Core Stripper 44528 | -2/Quarantine | Found Dimensional Node Initializer 44580 | -2/Quarantine | Found Hpw. Transdimensional Reconstructor 44839 | -2/Quarantine | Found Quantum Capacitor 44845 | -2/Quarantine | Found Prototype Device 44861 | -2/Quarantine | Identified Thermal Barrier 45122 | -2/Quarantine | Cryocooling Duct disabled 45137 | -2/Quarantine | Ambient heat levels rising (+20) 45137 | -2/Quarantine | Non-combat units ordered to evacuate 45281 | -2/Quarantine | Spotted Fortress 45304 | -2/Quarantine | Destroyed Fortress 45315 | -2/Quarantine | Found Prototype Device 45315 | -2/Quarantine | Identified Exp. EM Disruption Field 45321 | -2/Quarantine | Found Prototype Reactor 45321 | -2/Quarantine | Identified Vortex Chain Reactor 45377 | -2/Quarantine | Found Prototype Device 45377 | -2/Quarantine | Identified Exp. Force Field 45485 | -2/Quarantine | Discovered new exit (range 5) 45491 | -2/Quarantine | Entered Section 7 45492 | -2/Section 7 | Sensed 24 artifacts in vicinity 45593 | -2/Section 7 | Build established: Infiltrator-Mutant 45616 | -2/Section 7 | Spotted S7 Guard 45627 | -2/Section 7 | Destroyed S7 Guard 45662 | -2/Section 7 | Found Core Membrane 45673 | -2/Section 7 | Installed Core Membrane, gained immunity to corruption 45783 | -2/Section 7 | Found Spacefold Activator 45851 | -2/Section 7 | Spotted S7 Guard 45859 | -2/Section 7 | Destroyed S7 Guard 45877 | -2/Section 7 | Found Integrated Thermoelectric Network 45877 | -2/Section 7 | Installed Integrated Thermoelectric Network, gained heat-energy exchange potential 45953 | -2/Section 7 | Build established: Alien-Mutant 45977 | -2/Section 7 | Found Core Reset Matrix 45979 | -2/Section 7 | Sensed 20 artifacts in vicinity 46018 | -2/Section 7 | Found Microwarp Drive 46132 | -2/Section 7 | Found Prototype Launcher 46148 | -2/Section 7 | Found Prototype Launcher 46166 | -2/Section 7 | Identified Ragnarok Missile Launcher 46169 | -2/Section 7 | Identified Com. Tesla Bomb Launcher 46181 | -2/Section 7 | Initialized slip node 46189 | -2/Section 7 | Found Com. Tesla Bomb Launcher 46232 | -2/Section 7 | Found Integrity Redistributor 46239 | -2/Section 7 | Used Integrity Redistributor, redistributed integrity from core (-275) 46247 | -2/Section 7 | Found Integrity Redistributor 46249 | -2/Section 7 | Found Integrity Redistributor 46308 | -2/Section 7 | Found LRC Boosters 46308 | -2/Section 7 | Installed LRC Boosters, increased mass support (+10) 46318 | -2/Section 7 | Found LRC Boosters 46318 | -2/Section 7 | Installed LRC Boosters, increased mass support (+10) 46332 | -2/Section 7 | Found LRC Boosters 46332 | -2/Section 7 | Installed LRC Boosters, increased mass support (+10) 46406 | -2/Section 7 | Found Integrity Redistributor 46545 | -2/Section 7 | Garrison activated, responded to threat 46621 | -2/Section 7 | Destroyed 18 combat bots 46645 | -2/Section 7 | Discovered new exit (range 23) 46699 | -2/Section 7 | Found Integrated Reactor 46699 | -2/Section 7 | Installed Integrated Reactor, increased core energy generation (+10) 46747 | -2/Section 7 | Identified exit to Garrison 46866 | -2/Section 7 | Entered Garrison 46938 | -2/Garrison | Triggered checkpoint 46964 | -2/Garrison | Garrison Relay disabled 46993 | -2/Garrison | Spotted Executioner 47232 | -2/Garrison | Triggered checkpoint 47232 | -2/Garrison | Triggered checkpoint 47243 | -2/Garrison | Spotted B-90 Cyclops 47243 | -2/Garrison | Destroyed B-90 Cyclops 47269 | -2/Garrison | Triggered checkpoint 47297 | -2/Garrison | Triggered checkpoint 47320 | -2/Garrison | Destroyed 22 combat bots 47344 | -2/Garrison | Triggered checkpoint 47364 | -2/Garrison | Discovered new exit (range 14) 47633 | -2/Garrison | Discovered new exit (range 14) 47831 | -2/Garrison | Triggered checkpoint 47880 | -2/Garrison | Garrison Relay disabled 47978 | -2/Garrison | Phase Generator disabled 48077 | -2/Garrison | Garrison Relay disabled 48237 | -2/Garrison | Discovered new exit (range 23) 48319 | -2/Garrison | Destroyed B-90 Cyclops 48422 | -2/Garrison | QS Assembler disabled 48452 | -2/Garrison | Found Prototype Hackware 48465 | -2/Garrison | Identified Exp. Hacking Suite 48500 | -2/Garrison | Garrison Relay disabled 48542 | -2/Garrison | Used Integrity Redistributor, redistributed integrity from core (-82) 48580 | -2/Garrison | Entered Access 48580 | -1/Access | Evolved 2 slots: Utility x2 48830 | -1/Access | First assault squad dispatched 48863 | -1/Access | Spotted B-99 Colossus 48872 | -1/Access | Destroyed B-99 Colossus 49232 | -1/Access | High security lockdown imminent 49312 | -1/Access | High security lockdown engaged 49524 | -1/Access | Found Quantum Capacitor 49528 | -1/Access | Found Prototype Launcher 49530 | -1/Access | Found Prototype Launcher 49592 | -1/Access | Destroyed Executioner 49593 | -1/Access | Destroyed Investigator 49622 | -1/Access | Destroyed 18 combat bots 49655 | -1/Access | Destroyed Executioner 49656 | -1/Access | Destroyed Striker 49658 | -1/Access | Destroyed Investigator 49679 | -1/Access | Destroyed 8 combat bots 49773 | -1/Access | Spotted Striker 49773 | -1/Access | Spotted Striker 49774 | -1/Access | Destroyed Striker 49774 | -1/Access | Destroyed Striker 49778 | -1/Access | Spotted Striker 49780 | -1/Access | Destroyed Striker 49802 | -1/Access | Destroyed 10 combat bots 49833 | -1/Access | Destroyed Executioner 49841 | -1/Access | Destroyed Striker 49851 | -1/Access | Destroyed Executioner 49852 | -1/Access | Destroyed Executioner 49874 | -1/Access | Destroyed 17 combat bots 49921 | -1/Access | Destroyed Striker 49931 | -1/Access | Spotted Executioner 49931 | -1/Access | Destroyed Striker 49931 | -1/Access | Destroyed Striker 49931 | -1/Access | Destroyed Executioner 49958 | -1/Access | Destroyed 19 combat bots 49986 | -1/Access | Spotted Striker 49987 | -1/Access | Destroyed Striker 49988 | -1/Access | Destroyed Striker 50044 | -1/Access | Destroyed Striker 50044 | -1/Access | Destroyed Executioner 50067 | -1/Access | Destroyed 8 combat bots 50104 | -1/Access | Destroyed Executioner 50128 | -1/Access | Sterilization system engaged 50139 | -1/Access | Destroyed 15 combat bots 50182 | -1/Access | Spotted Striker 50182 | -1/Access | Spotted Executioner 50183 | -1/Access | Destroyed Striker 50184 | -1/Access | Destroyed Executioner 50186 | -1/Access | Destroyed Executioner 50195 | -1/Access | Destroyed Executioner 50196 | -1/Access | Destroyed Striker 50217 | -1/Access | Destroyed 10 combat bots 50227 | -1/Access | Destroyed Investigator 50257 | -1/Access | Destroyed 14 combat bots 50375 | -1/Access | Destroyed Striker 50376 | -1/Access | Destroyed Executioner 50377 | -1/Access | Destroyed Executioner 50378 | -1/Access | Destroyed Executioner 50399 | -1/Access | Destroyed 8 combat bots 50428 | -1/Access | Ambient heat levels rising (+10) 50578 | -1/Access | Ambient heat levels rising (+10) 50728 | -1/Access | Ambient heat levels rising (+10) 50769 | -1/Access | Energy Cycler disabled 50773 | -1/Access | Identified Adv. Micro-nuke Launcher (x2) 50878 | -1/Access | Ambient heat levels rising (+10) 51028 | -1/Access | Ambient heat levels rising (+10) 51178 | -1/Access | Ambient heat levels rising (+10) 51328 | -1/Access | Ambient heat levels rising (+10) 51342 | -1/Access | Discovered new exit (range 22) 51478 | -1/Access | Ambient heat levels rising (+10) 51533 | -1/Access | Discovered new exit (range 24) 51600 | -1/Access | Spotted B-99 Colossus 51623 | -1/Access | Destroyed B-99 Colossus 51628 | -1/Access | Ambient heat levels rising (+10) 51778 | -1/Access | Ambient heat levels rising (+10) 51928 | -1/Access | Ambient heat levels rising (+10) 52078 | -1/Access | Ambient heat levels rising (+10) 52228 | -1/Access | Ambient heat levels rising (+10) 52378 | -1/Access | Ambient heat levels rising (+10) 52502 | -1/Access | Found Unknown Device 52503 | -1/Access | Identified Antimissile System 52506 | -1/Access | Found Antimissile System 52528 | -1/Access | Ambient heat levels rising (+10) 52678 | -1/Access | Ambient heat levels rising (+10) 52828 | -1/Access | Ambient heat levels rising (+10) 52978 | -1/Access | Ambient heat levels rising (+10) 53128 | -1/Access | Ambient heat levels rising (+10) 53278 | -1/Access | Ambient heat levels rising (+10) 53428 | -1/Access | Ambient heat levels rising (+10) 53578 | -1/Access | Ambient heat levels rising (+10) 53728 | -1/Access | Ambient heat levels rising (+10) 53878 | -1/Access | Ambient heat levels rising (+10) 54028 | -1/Access | Ambient heat levels rising (+10) 54178 | -1/Access | Ambient heat levels rising (+10) 54328 | -1/Access | Ambient heat levels rising (+10) 54385 | -1/Access | Found Quantum Capacitor 54478 | -1/Access | Ambient heat levels rising (+10) 54628 | -1/Access | Ambient heat levels rising (+10) 54778 | -1/Access | Ambient heat levels rising (+10) 54928 | -1/Access | Ambient heat levels rising (+10) 55078 | -1/Access | Ambient heat levels rising (+10) 55228 | -1/Access | Ambient heat levels rising (+10) 55378 | -1/Access | Ambient heat levels rising (+10) 55528 | -1/Access | Ambient heat levels rising (+10) 55678 | -1/Access | Ambient heat levels rising (+10) 55696 | -1/Access | Found Unknown Device 55696 | -1/Access | Identified Launcher Loader 55828 | -1/Access | Ambient heat levels rising (+10) 55978 | -1/Access | Ambient heat levels rising (+10) 56128 | -1/Access | Ambient heat levels rising (+10) 56278 | -1/Access | Ambient heat levels rising (+10) 56428 | -1/Access | Ambient heat levels rising (+10) 56540 | -1/Access | Entered Command 56790 | -1/Command | First assault squad dispatched 56820 | -1/Command | High security lockdown imminent 56848 | -1/Command | Destroyed 18 combat bots 56896 | -1/Command | Destroyed 19 combat bots 56900 | -1/Command | High security lockdown engaged 57046 | -1/Command | Destroyed Striker 57048 | -1/Command | Destroyed Executioner 57051 | -1/Command | Destroyed Striker 57053 | -1/Command | Spotted Investigator 57055 | -1/Command | Destroyed Investigator 57074 | -1/Command | Destroyed 18 combat bots 57195 | -1/Command | Spotted Executioner 57196 | -1/Command | Destroyed Executioner 57198 | -1/Command | Destroyed Executioner 57200 | -1/Command | Destroyed Executioner 57215 | -1/Command | Spotted Striker 57215 | -1/Command | Spotted Striker 57215 | -1/Command | Spotted Striker 57216 | -1/Command | Destroyed Striker 57217 | -1/Command | Destroyed Striker 57217 | -1/Command | Destroyed Striker 57240 | -1/Command | Destroyed 24 combat bots 57453 | -1/Command | Spotted Executioner 57454 | -1/Command | Destroyed Executioner 57456 | -1/Command | Destroyed Striker 57457 | -1/Command | Destroyed Executioner 57479 | -1/Command | Destroyed 13 combat bots 57504 | -1/Command | Destroyed Striker 57504 | -1/Command | Spotted Striker 57505 | -1/Command | Destroyed Striker 57505 | -1/Command | Destroyed Executioner 57505 | -1/Command | Spotted Executioner 57506 | -1/Command | Destroyed Executioner 57508 | -1/Command | Destroyed Executioner 57533 | -1/Command | Destroyed 15 combat bots 57707 | -1/Command | Destroyed Executioner 57707 | -1/Command | Destroyed Executioner 57708 | -1/Command | Destroyed Executioner 57732 | -1/Command | Destroyed Executioner 57739 | -1/Command | Destroyed Executioner 57742 | -1/Command | Destroyed Executioner 57742 | -1/Command | Destroyed Executioner 57743 | -1/Command | Destroyed Executioner 57768 | -1/Command | Destroyed 40 combat bots 58970 | -1/Command | Phase Generator disabled 58999 | -1/Command | Found Unknown Protection 59220 | -1/Command | Spotted M Guard 59220 | -1/Command | Spotted M Guard 59220 | -1/Command | Spotted Combat Programmer 59224 | -1/Command | Spotted Combat Programmer 59224 | -1/Command | Destroyed Combat Programmer 59225 | -1/Command | Destroyed M Guard 59225 | -1/Command | Destroyed Combat Programmer 59227 | -1/Command | Destroyed M Guard 59227 | -1/Command | All MAIN.C guards destroyed 59258 | -1/Command | Found Prototype Device 59258 | -1/Command | Identified AEGIS Remote Shield 59266 | -1/Command | Found AEGIS Remote Shield 59271 | -1/Command | Found Prototype Processor 59271 | -1/Command | Identified Exp. Targeting Computer 59283 | -1/Command | Found Prototype Reactor 59283 | -1/Command | Identified Zero-point Reactor 59292 | -1/Command | Found Prototype Device 59292 | -1/Command | Identified Thermal Barrier 59383 | -1/Command | Spotted B-99 Colossus 59392 | -1/Command | Destroyed B-99 Colossus 59416 | -1/Command | Destroyed Alpha 7 59417 | -1/Command | Destroyed Striker 59420 | -1/Command | Destroyed Executioner 59423 | -1/Command | Spotted Striker 59424 | -1/Command | Destroyed Executioner 59425 | -1/Command | Spotted Alpha 7 59427 | -1/Command | Destroyed Striker 59428 | -1/Command | Destroyed Alpha 7 59428 | -1/Command | Spotted Executioner 59431 | -1/Command | Destroyed Executioner 59452 | -1/Command | Destroyed 7 combat bots 59462 | -1/Command | Spotted Executioner 59470 | -1/Command | Destroyed Executioner 59474 | -1/Command | Destroyed B-99 Colossus 59475 | -1/Command | Destroyed B-99 Colossus 59720 | -1/Command | Discovered new exit (range 15) 59830 | -1/Command | Spotted B-99 Colossus 59838 | -1/Command | Destroyed B-99 Colossus 60119 | -1/Command | Destroyed 43 combat bots 60244 | -1/Command | Destroyed 45 combat bots 60325 | -1/Command | Destroyed 20 combat bots 60396 | -1/Command | Destroyed 22 combat bots 60467 | -1/Command | Destroyed 12 combat bots 60559 | -1/Command | Destroyed 12 combat bots 60676 | -1/Command | Destroyed 11 combat bots 61049 | -1/Command | Destroyed 31 combat bots 61121 | -1/Command | Destroyed 47 combat bots 61205 | -1/Command | Destroyed 33 combat bots 61302 | -1/Command | Destroyed 28 combat bots 61378 | -1/Command | Destroyed 11 combat bots 61439 | -1/Command | Destroyed 10 combat bots 61483 | -1/Command | Destroyed 9 combat bots 62060 | -1/Command | Failed to warp due to unstable space 62564 | -1/Command | 0b10 Conduit disabled 62565 | -1/Command | Met MAIN.C 62576 | -1/Command | Destroyed MAIN.C Shell 62577 | -1/Command | MAIN.C activated Command garrisons 62596 | -1/Command | Destroyed MAIN.C 62616 | -1/Command | Discovered new exit (range 34) 62616 | -1/Command | Discovered new exit (range 88) 62616 | -1/Command | Extracted map data and part IDs from MAIN.C's data core 62881 | -1/Command | Found Exp. Terrain Scan Processor 65173 | -1/Command | Discovered new exit (range 24) 65430 | -1/Command | Build established: Alien-Skirmisher 65585 | -1/Command | Found Vortex Chain Reactor 65589 | -1/Command | Found Zero-point Reactor 65595 | -1/Command | Found Exp. Phase Shifter 65604 | -1/Command | Found Perforator 65801 | -1/Command | Entered Access_0 65802 | -1/Access_0 | Architect warped through subspace 65802 | -1/Access_0 | Sensed 3 artifacts in vicinity 65805 | -1/Access_0 | Destroyed A8 65839 | -1/Access_0 | Architect warped through subspace 65867 | -1/Access_0 | Architect warped through subspace 65887 | -1/Access_0 | Architect warped through subspace 65901 | -1/Access_0 | Subspace Access Node disabled 65907 | -1/Access_0 | Architect warped through subspace 65908 | -1/Access_0 | Used Integrity Redistributor, redistributed integrity from core (-301) 65909 | -1/Access_0 | Core integrity fell below 50% 65925 | -1/Access_0 | Architect warped through subspace 65943 | -1/Access_0 | Architect warped through subspace 65944 | -1/Access_0 | Build established: Alien-Mutant 65960 | -1/Access_0 | Architect warped through subspace 65960 | -1/Access_0 | Subspace Access Node disabled 65978 | -1/Access_0 | Architect warped through subspace 65991 | -1/Access_0 | Architect warped through subspace 66006 | -1/Access_0 | Architect warped through subspace 66010 | -1/Access_0 | Subspace Access Node disabled 66020 | -1/Access_0 | Architect warped through subspace 66030 | -1/Access_0 | A6 warped into view 66034 | -1/Access_0 | Destroyed A6 66041 | -1/Access_0 | Architect warped through subspace 66041 | -1/Access_0 | Subspace Access Node disabled 66068 | -1/Access_0 | Destroyed Architect 66069 | -1/Access_0 | Architect triggered a singularity event 66070 | -1/Access_0 | Released all parts (17) 66073 | -1/Access_0 | Found Hpw. Transdimensional Reconstructor 66073 | -1/Access_0 | Warped through subspace to slip node 66073 | -1/Access_0 | Discovered new exit (range 8) 66077 | *** | Escaped singularity! Last Messages --------------- 66070_ Released SHELL Armor. 66070_ Released Asb. Combat Suite. 66070_ Released Surveybot 24 Chip. 66070_ Released Huge Storage Unit. 66070_ Released Hdn. Centrium Heavy Treads. 66070_ Released Adv. Heavy Siege Treads. 66070_ Released Exp. Targeting Computer. 66070_ Released Vortex Chain Reactor. 66070_ Released AEGIS Remote Shield. 66070_ Released Imp. Utility Shielding. 66071_ A0_COM: 9. 66072_ A0_COM: 8. 66073_ A0_COM: 7. 66073_ Acquired Hpw. Transdimensional Reconstructor. 66073_ Warped through subspace, drawn to slip node. 66073_ EXIT=FOUND 66074_ A0_COM: 6. 66075_ A0_COM: 5. 66076_ A0_COM: 4. 66077_ A0_COM: 3. Map ----- +----------------------------------------------------+ | | | | | | | | | | | | | | | | | | | | | | | | | | | | | | | | | ?????????????????????????????????????????????????? | | ?????????????????????????????????????????????????? | | ?????????????????????????????????????????????????? | | ?????????????????????????????????????????????????? | | ?????????????????????????????????????????????????? | | ?????????????????????????????????????????????????? | | ????????????????????????###??????????????????????? | | ???????????????????????## ##?????????????????????? | | ???????????????????????# #?????????????????????? | | ???????????????????????# @ #?????????????????????? | | ??????????????????????## #?????????????????????? | | ??????????????????????# #?????????????????????? | | ??????????????????????# ##?????????????????????? | | ??????????????????????## #?????????????????????? | | ??????????????????????# #?????????????????????? | | ??????????????????????# ##?????????????????????? | | ??????????????????????# < #?????????????????????? | | ??????????????????????# ##?????????????????????? | | ??????????????????????## #??????????????????????? | | ???????????????????????####??????????????????????? | | ?????????????????????????????????????????????????? | | ?????????????????????????????????????????????????? | | ?????????????????????????????????????????????????? | | ?????????????????????????????????????????????????? | | ?????????????????????????????????????????????????? | | ?????????????????????????????????????????????????? | | ?????????????????????????????????????????????????? | | ?????????????????????????????????????????????????? | | ?????????????????????????????????????????????????? | | ?????????????????????????????????????????????????? | | ?????????????????????????????????????????????????? | | ?????????????????????????????????????????????????? | | ?????????????????????????????????????????????????? | | ?????????????????????????????????????????????????? | +----------------------------------------------------+ Best States ------------- Heat Dissipation 125 Coolant Potential 80 Energy Generation 210 Energy Capacity 2450 Matter Stores 550 Matter Capacity 550 Sight Range 20 Terrain Scan Range 24 Terrain Scan Density 2010 Jamming Range 16 Cloak Strength 4 Power Amplification 150 Additional Mass Support 20 EM Shielding 4 Armor Coverage 2250 Resistance: KI 15 Resistance: TH 50 Resistance: EX 75 Resistance: EM 75 Resistance: I 15 Resistance: S 15 Resistance: P 15 Utility Shielding 66 Weapon Shielding 100 Point Defense Rating 480 Phase Shifting 20 Evasion (%) 60 Targeting Accuracy 28 Target Analysis 10 Core Analysis 8 Armor Integrity Analysis 50 Recoil Reduction 6 Energy Filtering 30 Particle Charging 25 Kinecelleration 40 Salvage Targeting 1 Offensive Hacking 12 Item Schematics ----------------- None Robot Schematics ------------------ None Fabricated ------------ Adv. Transmission Jammer | x1 | -4/Factory Adv. Signal Interpreter | x2 | -4/Factory Alien Tech Used ----------------- Dimensional Node Initializer Integrated Reactor Core Reset Matrix Core Stripper Core Membrane Spacefold Activator Integrated Thermoelectric Network Microwarp Drive Integrity Redistributor LRC Boosters High-powered Transdimensional Reconstructor Achievements -------------- None Challenges ------------ None Game ------ Seed CoolantGravityAutocannon Manual? 0 Play Time 11:34:51 Cumulative 1345.2 hours Start 2023.03.30 @ 17:08:16 End 2023.04.01 @ 01:35:28 Sessions 3 Manual Loads 0 Difficulty Rogue Special Mode None Game No. 396 Rogue 396 Adventurer 0 Explorer 0 Win Type 6 Total 77 Types 13/18/15/3/1/2/21/2/2 Lore% 97 Gallery% 97 Achievement% 88 Wizard Run 0 Options --------- ASCII 0 Keyboard 0 Movement Numpad Keybinds 0 Fullscreen 2 Font 24/Smallcaps Map View 76x50 Tactical HUD 1 Map Filters NONE Filters NONE Steam 1 RUN: 9f878d11-7117-491f-aead-794c23801174